{"text_format":"3","workbook":"xlsx","n_sheets":17,"sheets":["部门财务收支预算总表01-1","部门收入预算表01-2","部门支出预算表01-3","部门财政拨款收支预算总表02-1","一般公共预算支出预算表02-2","一般公共预算“三公”经费支出预算表03","部门基本支出预算表04","部门项目支出预算表05-1","部门项目支出绩效目标表05-2","部门政府性基金预算表06","部门政府采购预算表07","部门政府购买服务预算表08","省对下转移支付预算表09-1","省对下转移支付绩效目标表09-2","新增资产配置表10","中央转移支付补助项目支出预算表11","部门项目支出中期规划预算表12"],"read":"whole","date_system":"1900"}

{"sheet":"部门财务收支预算总表01-1","index":0,"n_rows":21,"n_cols":4,"rows_kept":21,"merged":[[1,0,1,3],[2,0,2,1],[3,0,3,1],[3,2,3,3],[4,0,5,0],[4,1,5,1],[4,2,5,2],[4,3,5,3]]}
[{"$nulls":3},"预算01-1表"]
["2026年部门财务收支预算总表"]
[{"$f":"\"单位名称：\"&\"云南省公路路政管理总队\"","v":"单位名称：云南省公路路政管理总队"},null,null,"单位:元"]
["收        入",null,"支        出"]
["项      目","预算数","项目（按功能分类）","预算数"]
[]
["一、一般公共预算拨款收入",{"v":69017159.24,"d":"69,017,159.24"},{"$f":"\"一\"&\"、\"&\"社会保障和就业支出\"","v":"一、社会保障和就业支出"},{"v":3737280.42,"d":"3,737,280.42"}]
["二、政府性基金预算拨款收入",null,{"$f":"\"二\"&\"、\"&\"卫生健康支出\"","v":"二、卫生健康支出"},{"v":3977835.38,"d":"3,977,835.38"}]
["三、国有资本经营预算拨款收入",null,{"$f":"\"三\"&\"、\"&\"交通运输支出\"","v":"三、交通运输支出"},{"v":62964683.62,"d":"62,964,683.62"}]
["四、财政专户管理资金收入",null,{"$f":"\"四\"&\"、\"&\"住房保障支出\"","v":"四、住房保障支出"},{"v":2502699.82,"d":"2,502,699.82"}]
["五、单位资金",{"v":100000,"d":"100,000.00"}]
["1、事业收入"]
["2、事业单位经营收入"]
["3、上级补助收入"]
["4、附属单位上缴收入"]
["5、其他收入",{"v":100000,"d":"100,000.00"}]
["本年收入合计",{"v":69117159.24,"d":"69,117,159.24"},"本年支出合计",{"v":73182499.24,"d":"73,182,499.24"}]
["上年结转结余",{"v":4065340,"d":"4,065,340.00"},"年终结转结余"]
["1、财政拨款结转结余",{"v":4065340,"d":"4,065,340.00"},"1、财政拨款结转结余"]
["2、非财政拨款结余",null,"2、非财政拨款结余"]
["收  入  总  计",{"v":73182499.24,"d":"73,182,499.24"},"支 出 总 计",{"v":73182499.24,"d":"73,182,499.24"}]

{"sheet":"部门收入预算表01-2","index":1,"n_rows":10,"n_cols":19,"rows_kept":10,"merged":[[0,17,0,18],[1,0,1,18],[2,0,2,3],[2,17,2,18],[3,0,5,0],[3,1,5,1],[3,2,5,2],[3,3,3,13],[3,14,3,18],[4,3,5,3],[4,4,5,4],[4,5,5,5],[4,6,5,6],[4,7,5,7],[4,8,4,13],[4,14,5,14],[4,15,5,15],[4,16,5,16],[4,17,5,17],[4,18,5,18]]}
[{"$nulls":17},"预算01-2表"]
["2026年部门收入预算表"]
[{"$f":"\"单位名称：\"&\"云南省公路路政管理总队\"","v":"单位名称：云南省公路路政管理总队"},{"$nulls":16},"单位:元","单位:元"]
["部门（单位）代码","部门（单位）名称","合计","本年收入",{"$nulls":10},"上年结转结余"]
[{"$nulls":3},"小计","一般公共预算","政府性基金预算","国有资本经营预算","财政专户管理资金","单位资金收入",null,"事业单位经营收入","上级补助收入","附属单位上缴收入","其他收入","小计","一般公共预算","政府性基金预算","国有资本经营预算","非财政拨款结余"]
[{"$nulls":8},"小计","事业收入","事业单位经营收入","上级补助收入","附属单位上缴收入","其他收入"]
[1,2,3,4,5,6,7,8,9,10,11,12,13,14,15,16,17,18,19]
["123014","云南省公路路政管理总队",{"v":73182499.24,"d":"73,182,499.24"},{"v":69117159.24,"d":"69,117,159.24"},{"v":69017159.24,"d":"69,017,159.24"},{"$nulls":3},{"v":100000,"d":"100,000.00"},{"$nulls":4},{"v":100000,"d":"100,000.00"},{"v":4065340,"d":"4,065,340.00"},{"v":4065340,"d":"4,065,340.00"}]
["123014001","云南省公路路政管理总队",{"v":73182499.24,"d":"73,182,499.24"},{"v":69117159.24,"d":"69,117,159.24"},{"v":69017159.24,"d":"69,017,159.24"},{"$nulls":3},{"v":100000,"d":"100,000.00"},{"$nulls":4},{"v":100000,"d":"100,000.00"},{"v":4065340,"d":"4,065,340.00"},{"v":4065340,"d":"4,065,340.00"}]
["合计",null,{"v":73182499.24,"d":"73,182,499.24"},{"v":69117159.24,"d":"69,117,159.24"},{"v":69017159.24,"d":"69,017,159.24"},{"$nulls":3},{"v":100000,"d":"100,000.00"},{"$nulls":4},{"v":100000,"d":"100,000.00"},{"v":4065340,"d":"4,065,340.00"},{"v":4065340,"d":"4,065,340.00"}]

{"sheet":"部门支出预算表01-3","index":2,"n_rows":28,"n_cols":15,"rows_kept":28,"merged":[[1,0,1,14],[2,0,2,11],[3,0,4,0],[3,1,4,1],[3,2,4,2],[3,3,3,5],[3,6,4,6],[3,7,4,7],[3,8,4,8],[3,9,3,14],[27,0,27,1]]}
[{"$nulls":14},"预算01-3表"]
["2026年部门支出预算表"]
[{"$f":"\"单位名称：\"&\"云南省公路路政管理总队\"","v":"单位名称：云南省公路路政管理总队"},{"$nulls":13},"单位:元"]
["科目编码","科目名称","合计","一般公共预算",null,null,"政府性基金预算","国有资本经营预算","财政专户管理的支出","单位资金","事业支出","事业单位\n经营支出","上级补助支出","附属单位补助支出","其他支出"]
[{"$nulls":3},"小计","基本支出","项目支出",{"$nulls":3},"小计","事业支出","事业单位\n经营支出","上级补助支出","附属单位补助支出","其他支出"]
[1,2,3,4,5,6,7,8,9,10,11,12,13,14,15]
["208","社会保障和就业支出",{"v":3737280.42,"d":"3,737,280.42"},{"v":3737280.42,"d":"3,737,280.42"},{"v":3737280.42,"d":"3,737,280.42"}]
["20805","行政事业单位养老支出",{"v":3565463.76,"d":"3,565,463.76"},{"v":3565463.76,"d":"3,565,463.76"},{"v":3565463.76,"d":"3,565,463.76"}]
["2080502","事业单位离退休",{"v":72900,"d":"72,900.00"},{"v":72900,"d":"72,900.00"},{"v":72900,"d":"72,900.00"}]
["2080505","机关事业单位基本养老保险缴费支出",{"v":3492563.76,"d":"3,492,563.76"},{"v":3492563.76,"d":"3,492,563.76"},{"v":3492563.76,"d":"3,492,563.76"}]
["20899","其他社会保障和就业支出",{"v":171816.66,"d":"171,816.66"},{"v":171816.66,"d":"171,816.66"},{"v":171816.66,"d":"171,816.66"}]
["2089999","其他社会保障和就业支出",{"v":171816.66,"d":"171,816.66"},{"v":171816.66,"d":"171,816.66"},{"v":171816.66,"d":"171,816.66"}]
["210","卫生健康支出",{"v":3977835.38,"d":"3,977,835.38"},{"v":3977835.38,"d":"3,977,835.38"},{"v":3977835.38,"d":"3,977,835.38"}]
["21011","行政事业单位医疗",{"v":3977835.38,"d":"3,977,835.38"},{"v":3977835.38,"d":"3,977,835.38"},{"v":3977835.38,"d":"3,977,835.38"}]
["2101102","事业单位医疗",{"v":2182852.35,"d":"2,182,852.35"},{"v":2182852.35,"d":"2,182,852.35"},{"v":2182852.35,"d":"2,182,852.35"}]
["2101103","公务员医疗补助",{"v":1672542.53,"d":"1,672,542.53"},{"v":1672542.53,"d":"1,672,542.53"},{"v":1672542.53,"d":"1,672,542.53"}]
["2101199","其他行政事业单位医疗支出",{"v":122440.5,"d":"122,440.50"},{"v":122440.5,"d":"122,440.50"},{"v":122440.5,"d":"122,440.50"}]
["214","交通运输支出",{"v":62964683.62,"d":"62,964,683.62"},{"v":62864683.62,"d":"62,864,683.62"},{"v":26261943.62,"d":"26,261,943.62"},{"v":36602740,"d":"36,602,740.00"},{"$nulls":3},{"v":100000,"d":"100,000.00"},{"$nulls":4},{"v":100000,"d":"100,000.00"}]
["21401","公路水路运输",{"v":62964683.62,"d":"62,964,683.62"},{"v":62864683.62,"d":"62,864,683.62"},{"v":26261943.62,"d":"26,261,943.62"},{"v":36602740,"d":"36,602,740.00"},{"$nulls":3},{"v":100000,"d":"100,000.00"},{"$nulls":4},{"v":100000,"d":"100,000.00"}]
["2140102","一般行政管理事务",{"v":40000,"d":"40,000.00"},{"v":40000,"d":"40,000.00"},null,{"v":40000,"d":"40,000.00"}]
["2140109","交通运输信息化建设",{"v":22364620,"d":"22,364,620.00"},{"v":22364620,"d":"22,364,620.00"},null,{"v":22364620,"d":"22,364,620.00"}]
["2140110","公路和运输安全",{"v":2418300,"d":"2,418,300.00"},{"v":2418300,"d":"2,418,300.00"},null,{"v":2418300,"d":"2,418,300.00"}]
["2140112","公路运输管理",{"v":36391763.62,"d":"36,391,763.62"},{"v":36291763.62,"d":"36,291,763.62"},{"v":26261943.62,"d":"26,261,943.62"},{"v":10029820,"d":"10,029,820.00"},{"$nulls":3},{"v":100000,"d":"100,000.00"},{"$nulls":4},{"v":100000,"d":"100,000.00"}]
["2140114","公路和运输技术标准化建设",{"v":1750000,"d":"1,750,000.00"},{"v":1750000,"d":"1,750,000.00"},null,{"v":1750000,"d":"1,750,000.00"}]
["221","住房保障支出",{"v":2502699.82,"d":"2,502,699.82"},{"v":2502699.82,"d":"2,502,699.82"},{"v":2502699.82,"d":"2,502,699.82"}]
["22102","住房改革支出",{"v":2502699.82,"d":"2,502,699.82"},{"v":2502699.82,"d":"2,502,699.82"},{"v":2502699.82,"d":"2,502,699.82"}]
["2210201","住房公积金",{"v":2502699.82,"d":"2,502,699.82"},{"v":2502699.82,"d":"2,502,699.82"},{"v":2502699.82,"d":"2,502,699.82"}]
["合  计","合  计",{"v":73182499.24,"d":"73,182,499.24"},{"v":73082499.24,"d":"73,082,499.24"},{"v":36479759.24,"d":"36,479,759.24"},{"v":36602740,"d":"36,602,740.00"},{"$nulls":3},{"v":100000,"d":"100,000.00"},{"$nulls":4},{"v":100000,"d":"100,000.00"}]

{"sheet":"部门财政拨款收支预算总表02-1","index":3,"n_rows":16,"n_cols":4,"rows_kept":16,"merged":[[1,0,1,3],[2,0,2,1],[3,0,3,1],[3,2,3,3],[4,0,5,0],[4,1,5,1],[4,2,5,2],[4,3,5,3]]}
[{"$nulls":3},"预算02-1表"]
["2026年财政拨款收支预算总表"]
[{"$f":"\"单位名称：\"&\"云南省公路路政管理总队\"","v":"单位名称：云南省公路路政管理总队"},null,null,"单位:元"]
["收        入",null,"支        出"]
["项      目","预算数","支出功能分类科目","预算数"]
[]
["一、本年收入",{"v":69017159.24,"d":"69,017,159.24"},"一、本年支出",{"v":73082499.24,"d":"73,082,499.24"}]
["（一）一般公共预算拨款",{"v":69017159.24,"d":"69,017,159.24"},{"$f":"\"（一）\"&\"社会保障和就业支出\"","v":"（一）社会保障和就业支出"},{"v":3737280.42,"d":"3,737,280.42"}]
["（二）政府性基金预算拨款",null,{"$f":"\"（二）\"&\"卫生健康支出\"","v":"（二）卫生健康支出"},{"v":3977835.38,"d":"3,977,835.38"}]
["（三）国有资本经营预算拨款",null,{"$f":"\"（三）\"&\"交通运输支出\"","v":"（三）交通运输支出"},{"v":62864683.62,"d":"62,864,683.62"}]
["二、上年结转",{"v":4065340,"d":"4,065,340.00"},{"$f":"\"（四）\"&\"住房保障支出\"","v":"（四）住房保障支出"},{"v":2502699.82,"d":"2,502,699.82"}]
["（一）一般公共预算拨款",{"v":4065340,"d":"4,065,340.00"}]
["（二）政府性基金预算拨款"]
["（三）国有资本经营预算拨款"]
[null,null,"二、年终结转结余"]
["收 入 总 计",{"v":73082499.24,"d":"73,082,499.24"},"支 出 总 计",{"v":73082499.24,"d":"73,082,499.24"}]

{"sheet":"一般公共预算支出预算表02-2","index":4,"n_rows":28,"n_cols":7,"rows_kept":28,"merged":[[1,0,1,6],[2,0,2,4],[3,0,3,1],[3,2,4,2],[3,3,3,5],[3,6,4,6],[27,0,27,1]]}
[{"$nulls":6},"预算02-2表"]
["2026年一般公共预算支出预算表（按功能科目分类）"]
[{"$f":"\"单位名称：\"&\"云南省公路路政管理总队\"","v":"单位名称：云南省公路路政管理总队"},{"$nulls":5},"单位:元"]
["部门预算支出功能分类科目",null,"合计","基本支出",null,null,"项目支出"]
["科目编码","科目名称",null,"小计","人员经费","公用经费"]
["1","2","3",null,"4","5","6"]
["208","社会保障和就业支出",{"v":3737280.42,"d":"3,737,280.42"},{"v":3737280.42,"d":"3,737,280.42"},{"v":3664380.42,"d":"3,664,380.42"},{"v":72900,"d":"72,900.00"}]
["20805","行政事业单位养老支出",{"v":3565463.76,"d":"3,565,463.76"},{"v":3565463.76,"d":"3,565,463.76"},{"v":3492563.76,"d":"3,492,563.76"},{"v":72900,"d":"72,900.00"}]
["2080502","事业单位离退休",{"v":72900,"d":"72,900.00"},{"v":72900,"d":"72,900.00"},null,{"v":72900,"d":"72,900.00"}]
["2080505","机关事业单位基本养老保险缴费支出",{"v":3492563.76,"d":"3,492,563.76"},{"v":3492563.76,"d":"3,492,563.76"},{"v":3492563.76,"d":"3,492,563.76"}]
["20899","其他社会保障和就业支出",{"v":171816.66,"d":"171,816.66"},{"v":171816.66,"d":"171,816.66"},{"v":171816.66,"d":"171,816.66"}]
["2089999","其他社会保障和就业支出",{"v":171816.66,"d":"171,816.66"},{"v":171816.66,"d":"171,816.66"},{"v":171816.66,"d":"171,816.66"}]
["210","卫生健康支出",{"v":3977835.38,"d":"3,977,835.38"},{"v":3977835.38,"d":"3,977,835.38"},{"v":3977835.38,"d":"3,977,835.38"}]
["21011","行政事业单位医疗",{"v":3977835.38,"d":"3,977,835.38"},{"v":3977835.38,"d":"3,977,835.38"},{"v":3977835.38,"d":"3,977,835.38"}]
["2101102","事业单位医疗",{"v":2182852.35,"d":"2,182,852.35"},{"v":2182852.35,"d":"2,182,852.35"},{"v":2182852.35,"d":"2,182,852.35"}]
["2101103","公务员医疗补助",{"v":1672542.53,"d":"1,672,542.53"},{"v":1672542.53,"d":"1,672,542.53"},{"v":1672542.53,"d":"1,672,542.53"}]
["2101199","其他行政事业单位医疗支出",{"v":122440.5,"d":"122,440.50"},{"v":122440.5,"d":"122,440.50"},{"v":122440.5,"d":"122,440.50"}]
["214","交通运输支出",{"v":58799343.62,"d":"58,799,343.62"},{"v":26261943.62,"d":"26,261,943.62"},{"v":23753600.4,"d":"23,753,600.40"},{"v":2508343.22,"d":"2,508,343.22"},{"v":32537400,"d":"32,537,400.00"}]
["21401","公路水路运输",{"v":58799343.62,"d":"58,799,343.62"},{"v":26261943.62,"d":"26,261,943.62"},{"v":23753600.4,"d":"23,753,600.40"},{"v":2508343.22,"d":"2,508,343.22"},{"v":32537400,"d":"32,537,400.00"}]
["2140102","一般行政管理事务",{"v":40000,"d":"40,000.00"},{"$nulls":3},{"v":40000,"d":"40,000.00"}]
["2140109","交通运输信息化建设",{"v":19901600,"d":"19,901,600.00"},{"$nulls":3},{"v":19901600,"d":"19,901,600.00"}]
["2140110","公路和运输安全",{"v":2418300,"d":"2,418,300.00"},{"$nulls":3},{"v":2418300,"d":"2,418,300.00"}]
["2140112","公路运输管理",{"v":34689443.62,"d":"34,689,443.62"},{"v":26261943.62,"d":"26,261,943.62"},{"v":23753600.4,"d":"23,753,600.40"},{"v":2508343.22,"d":"2,508,343.22"},{"v":8427500,"d":"8,427,500.00"}]
["2140114","公路和运输技术标准化建设",{"v":1750000,"d":"1,750,000.00"},{"$nulls":3},{"v":1750000,"d":"1,750,000.00"}]
["221","住房保障支出",{"v":2502699.82,"d":"2,502,699.82"},{"v":2502699.82,"d":"2,502,699.82"},{"v":2502699.82,"d":"2,502,699.82"}]
["22102","住房改革支出",{"v":2502699.82,"d":"2,502,699.82"},{"v":2502699.82,"d":"2,502,699.82"},{"v":2502699.82,"d":"2,502,699.82"}]
["2210201","住房公积金",{"v":2502699.82,"d":"2,502,699.82"},{"v":2502699.82,"d":"2,502,699.82"},{"v":2502699.82,"d":"2,502,699.82"}]
["合  计","合  计",{"v":69017159.24,"d":"69,017,159.24"},{"v":36479759.24,"d":"36,479,759.24"},{"v":33898516.02,"d":"33,898,516.02"},{"v":2581243.22,"d":"2,581,243.22"},{"v":32537400,"d":"32,537,400.00"}]

{"sheet":"一般公共预算“三公”经费支出预算表03","index":5,"n_rows":7,"n_cols":6,"rows_kept":7,"merged":[[1,0,1,5],[2,0,2,3],[3,0,4,0],[3,1,4,1],[3,2,3,4],[3,5,4,5]]}
[{"$nulls":5},"预算03表"]
["2026年一般公共预算“三公”经费支出预算表"]
[{"$f":"\"单位名称：\"&\"云南省公路路政管理总队\"","v":"单位名称：云南省公路路政管理总队"},{"$nulls":4},"单位：元"]
["“三公”经费合计","因公出国（境）费","公务用车购置及运行费",null,null,"公务接待费"]
[null,null,"小计","公务用车购置费","公务用车运行费"]
[1,2,3,4,5,6]
[{"v":355200,"d":"355,200.00"},null,{"v":355200,"d":"355,200.00"},null,{"v":355200,"d":"355,200.00"}]

{"sheet":"部门基本支出预算表04","index":6,"n_rows":36,"n_cols":23,"rows_kept":36,"merged":[[1,0,1,22],[2,0,2,6],[3,0,6,0],[3,1,6,1],[3,2,6,2],[3,3,6,3],[3,4,6,4],[3,5,6,5],[3,6,6,6],[3,7,3,22],[4,7,6,7],[4,8,4,12],[4,13,4,15],[4,16,6,16],[4,17,4,22],[5,8,6,8],[5,9,6,9],[5,10,6,10],[5,11,6,11],[5,12,6,12],[5,13,6,13],[5,14,6,14],[5,15,6,15],[5,17,6,17],[5,18,6,18],[5,19,6,19],[5,20,6,20],[5,21,6,21],[5,22,6,22],[35,0,35,6]]}
[{"$nulls":22},"预算04表"]
["2026年部门基本支出预算表"]
[{"$f":"\"单位名称：\"&\"云南省公路路政管理总队\"","v":"单位名称：云南省公路路政管理总队"},{"$nulls":21},"单位：元"]
["单位名称","项目代码","项目名称","功能科目编码","功能科目名称","经济科目编码","经济科目名称","资金来源"]
[{"$nulls":7},"合计","一般公共预算",{"$nulls":4},"财政拨款结转结余",null,null,"财政专户管理资金","单位资金"]
[{"$nulls":8},"全年数","已提前安排","抵扣上年垫付资金","本次下达","另文下达","一般公共预算","政府性基金预算","国有资本经营预算",null,"小计","事业收入","事业单位\n经营收入","上级补助收入","附属单位上缴收入","其他收入"]
[]
[1,2,3,4,5,6,7,8,9,10,11,12,13,14,15,16,17,18,19,20,21,22,23]
["云南省公路路政管理总队",{"$nulls":6},{"v":36479759.24,"d":"36,479,759.24"},{"v":36479759.24,"d":"36,479,759.24"},{"v":9080763.79,"d":"9,080,763.79"},null,{"v":27398995.45,"d":"27,398,995.45"}]
["云南省公路路政管理总队",{"$nulls":6},{"v":36479759.24,"d":"36,479,759.24"},{"v":36479759.24,"d":"36,479,759.24"},{"v":9080763.79,"d":"9,080,763.79"},null,{"v":27398995.45,"d":"27,398,995.45"}]
["云南省公路路政管理总队","530000210000000043208","事业人员支出工资","2140112","公路运输管理","30101","基本工资",{"v":9865224,"d":"9,865,224.00"},{"v":9865224,"d":"9,865,224.00"},{"v":2466306,"d":"2,466,306.00"},null,{"v":7398918,"d":"7,398,918.00"}]
["云南省公路路政管理总队","530000210000000043208","事业人员支出工资","2140112","公路运输管理","30102","津贴补贴",{"v":924,"d":"924.00"},{"v":924,"d":"924.00"},{"v":231,"d":"231.00"},null,{"v":693,"d":"693.00"}]
["云南省公路路政管理总队","530000210000000043208","事业人员支出工资","2140112","公路运输管理","30103","奖金",{"v":822102,"d":"822,102.00"},{"v":822102,"d":"822,102.00"},{"v":205525.5,"d":"205,525.50"},null,{"v":616576.5,"d":"616,576.50"}]
["云南省公路路政管理总队","530000210000000043208","事业人员支出工资","2140112","公路运输管理","30107","绩效工资",{"v":13053744,"d":"13,053,744.00"},{"v":13053744,"d":"13,053,744.00"},{"v":3263436,"d":"3,263,436.00"},null,{"v":9790308,"d":"9,790,308.00"}]
["云南省公路路政管理总队","530000210000000043209","社会保障缴费","2080505","机关事业单位基本养老保险缴费支出","30108","机关事业单位基本养老保险缴费",{"v":3492563.76,"d":"3,492,563.76"},{"v":3492563.76,"d":"3,492,563.76"},{"v":873140.94,"d":"873,140.94"},null,{"v":2619422.82,"d":"2,619,422.82"}]
["云南省公路路政管理总队","530000210000000043209","社会保障缴费","2089999","其他社会保障和就业支出","30112","其他社会保障缴费",{"v":171816.66,"d":"171,816.66"},{"v":171816.66,"d":"171,816.66"},{"v":42954.16,"d":"42,954.16"},null,{"v":128862.5,"d":"128,862.50"}]
["云南省公路路政管理总队","530000210000000043209","社会保障缴费","2101102","事业单位医疗","30110","职工基本医疗保险缴费",{"v":2182852.35,"d":"2,182,852.35"},{"v":2182852.35,"d":"2,182,852.35"},{"v":545713.09,"d":"545,713.09"},null,{"v":1637139.26,"d":"1,637,139.26"}]
["云南省公路路政管理总队","530000210000000043209","社会保障缴费","2101103","公务员医疗补助","30111","公务员医疗补助缴费",{"v":1672542.53,"d":"1,672,542.53"},{"v":1672542.53,"d":"1,672,542.53"},{"v":418135.63,"d":"418,135.63"},null,{"v":1254406.9,"d":"1,254,406.90"}]
["云南省公路路政管理总队","530000210000000043209","社会保障缴费","2101199","其他行政事业单位医疗支出","30112","其他社会保障缴费",{"v":122440.5,"d":"122,440.50"},{"v":122440.5,"d":"122,440.50"},{"v":122440.5,"d":"122,440.50"}]
["云南省公路路政管理总队","530000210000000043211","住房公积金","2210201","住房公积金","30113","住房公积金",{"v":2502699.82,"d":"2,502,699.82"},{"v":2502699.82,"d":"2,502,699.82"},{"v":625674.96,"d":"625,674.96"},null,{"v":1877024.86,"d":"1,877,024.86"}]
["云南省公路路政管理总队","530000210000000043212","对个人和家庭的补助","2140112","公路运输管理","30305","生活补助",{"v":11606.4,"d":"11,606.40"},{"v":11606.4,"d":"11,606.40"},{"v":2901.6,"d":"2,901.60"},null,{"v":8704.8,"d":"8,704.80"}]
["云南省公路路政管理总队","530000210000000043214","公车购置及运维费","2140112","公路运输管理","30231","公务用车运行维护费",{"v":355200,"d":"355,200.00"},{"v":355200,"d":"355,200.00"},null,null,{"v":355200,"d":"355,200.00"}]
["云南省公路路政管理总队","530000210000000043218","工会经费","2140112","公路运输管理","30228","工会经费",{"v":474839.88,"d":"474,839.88"},{"v":474839.88,"d":"474,839.88"},{"v":118709.97,"d":"118,709.97"},null,{"v":356129.91,"d":"356,129.91"}]
["云南省公路路政管理总队","530000210000000043219","一般公用经费","2080502","事业单位离退休","30299","其他商品和服务支出",{"v":72900,"d":"72,900.00"},{"v":72900,"d":"72,900.00"},{"v":18225,"d":"18,225.00"},null,{"v":54675,"d":"54,675.00"}]
["云南省公路路政管理总队","530000210000000043219","一般公用经费","2140112","公路运输管理","30201","办公费",{"v":168825.58,"d":"168,825.58"},{"v":168825.58,"d":"168,825.58"},null,null,{"v":168825.58,"d":"168,825.58"}]
["云南省公路路政管理总队","530000210000000043219","一般公用经费","2140112","公路运输管理","30202","印刷费",{"v":30000,"d":"30,000.00"},{"v":30000,"d":"30,000.00"},{"v":7500,"d":"7,500.00"},null,{"v":22500,"d":"22,500.00"}]
["云南省公路路政管理总队","530000210000000043219","一般公用经费","2140112","公路运输管理","30205","水费",{"v":40000,"d":"40,000.00"},{"v":40000,"d":"40,000.00"},{"v":10000,"d":"10,000.00"},null,{"v":30000,"d":"30,000.00"}]
["云南省公路路政管理总队","530000210000000043219","一般公用经费","2140112","公路运输管理","30206","电费",{"v":80000,"d":"80,000.00"},{"v":80000,"d":"80,000.00"},{"v":20000,"d":"20,000.00"},null,{"v":60000,"d":"60,000.00"}]
["云南省公路路政管理总队","530000210000000043219","一般公用经费","2140112","公路运输管理","30207","邮电费",{"v":55000,"d":"55,000.00"},{"v":55000,"d":"55,000.00"},{"v":13750,"d":"13,750.00"},null,{"v":41250,"d":"41,250.00"}]
["云南省公路路政管理总队","530000210000000043219","一般公用经费","2140112","公路运输管理","30209","物业管理费",{"v":35000,"d":"35,000.00"},{"v":35000,"d":"35,000.00"},{"v":8750,"d":"8,750.00"},null,{"v":26250,"d":"26,250.00"}]
["云南省公路路政管理总队","530000210000000043219","一般公用经费","2140112","公路运输管理","30211","差旅费",{"v":400000,"d":"400,000.00"},{"v":400000,"d":"400,000.00"},{"v":100000,"d":"100,000.00"},null,{"v":300000,"d":"300,000.00"}]
["云南省公路路政管理总队","530000210000000043219","一般公用经费","2140112","公路运输管理","30213","维修（护）费",{"v":100000,"d":"100,000.00"},{"v":100000,"d":"100,000.00"},{"v":25000,"d":"25,000.00"},null,{"v":75000,"d":"75,000.00"}]
["云南省公路路政管理总队","530000210000000043219","一般公用经费","2140112","公路运输管理","30216","培训费",{"v":41000,"d":"41,000.00"},{"v":41000,"d":"41,000.00"},{"v":10250,"d":"10,250.00"},null,{"v":30750,"d":"30,750.00"}]
["云南省公路路政管理总队","530000210000000043219","一般公用经费","2140112","公路运输管理","30227","委托业务费",{"v":76000,"d":"76,000.00"},{"v":76000,"d":"76,000.00"},{"v":19000,"d":"19,000.00"},null,{"v":57000,"d":"57,000.00"}]
["云南省公路路政管理总队","530000210000000043219","一般公用经费","2140112","公路运输管理","30299","其他商品和服务支出",{"v":652477.76,"d":"652,477.76"},{"v":652477.76,"d":"652,477.76"},{"v":163119.44,"d":"163,119.44"},null,{"v":489358.32,"d":"489,358.32"}]
["合  计",{"$nulls":6},{"v":36479759.24,"d":"36,479,759.24"},{"v":36479759.24,"d":"36,479,759.24"},{"v":9080763.79,"d":"9,080,763.79"},null,{"v":27398995.45,"d":"27,398,995.45"}]

{"sheet":"部门项目支出预算表05-1","index":7,"n_rows":39,"n_cols":23,"rows_kept":39,"merged":[[1,0,1,22],[2,0,2,8],[3,0,5,0],[3,1,5,1],[3,2,5,2],[3,3,5,3],[3,4,5,4],[3,5,5,5],[3,6,5,6],[3,7,5,7],[3,8,5,8],[3,9,3,12],[3,13,3,15],[3,16,5,16],[3,17,3,22],[4,9,4,10],[4,11,5,11],[4,12,5,12],[4,13,5,13],[4,14,5,14],[4,15,5,15],[4,17,5,17],[4,18,5,18],[4,19,5,19],[4,20,5,20],[4,21,5,21],[4,22,5,22],[38,0,38,7]]}
[{"$nulls":22},"预算05-1表"]
["2026年部门项目支出预算表"]
[{"$f":"\"单位名称：\"&\"云南省公路路政管理总队\"","v":"单位名称：云南省公路路政管理总队"},{"$f":"\"单位名称：\"&\"云南省公路路政管理总队\"","v":"单位名称：云南省公路路政管理总队"},{"$nulls":20},"单位：元"]
["项目分类","项目代码","项目名称","项目单位","功能科目编码","功能科目名称","经济科目编码","经济科目名称","合计","本年拨款",{"$nulls":3},"财政拨款结转结余",null,null,"财政专户管理资金","单位资金"]
[{"$nulls":9},"一般公共预算",null,"政府性基金预算","国有资本经营预算","一般公共预算","政府性基金预算","国有资本经营预算",null,"小计","事业收入","事业单位\n经营收入","上级补助收入","附属单位上缴收入","其他收入"]
[{"$nulls":9},"小计","其中：本次下达"]
[1,2,3,4,5,6,7,8,9,10,11,12,13,14,15,16,17,18,19,20,21,22,23]
[null,null,"2025年国际道路运输管理保障经费",{"$nulls":5},{"v":500000,"d":"500,000.00"},{"$nulls":4},{"v":500000,"d":"500,000.00"}]
["事业发展类","530000251100004634184","2025年国际道路运输管理保障经费","云南省公路路政管理总队","2140112","公路运输管理","30213","维修（护）费",{"v":500000,"d":"500,000.00"},{"$nulls":4},{"v":500000,"d":"500,000.00"}]
[null,null,"交通工程领域“银龄工程师”引进留用省本级资金",{"$nulls":5},{"v":90000,"d":"90,000.00"},{"v":90000,"d":"90,000.00"},{"v":90000,"d":"90,000.00"}]
["事业发展类","530000261100005165205","交通工程领域“银龄工程师”引进留用省本级资金","云南省公路路政管理总队","2140112","公路运输管理","30226","劳务费",{"v":90000,"d":"90,000.00"},{"v":90000,"d":"90,000.00"},{"v":90000,"d":"90,000.00"}]
[null,null,"交通运输工程项目监管和路网监测专项经费",{"$nulls":5},{"v":9262100,"d":"9,262,100.00"},{"v":9262100,"d":"9,262,100.00"},{"v":9262100,"d":"9,262,100.00"}]
["其他运转类","530000241100002006488","交通运输工程项目监管和路网监测专项经费","云南省公路路政管理总队","2140109","交通运输信息化建设","30213","维修（护）费",{"v":241600,"d":"241,600.00"},{"v":241600,"d":"241,600.00"},{"v":241600,"d":"241,600.00"}]
["其他运转类","530000241100002006488","交通运输工程项目监管和路网监测专项经费","云南省公路路政管理总队","2140110","公路和运输安全","30211","差旅费",{"v":400000,"d":"400,000.00"},{"v":400000,"d":"400,000.00"},{"v":400000,"d":"400,000.00"}]
["其他运转类","530000241100002006488","交通运输工程项目监管和路网监测专项经费","云南省公路路政管理总队","2140110","公路和运输安全","30213","维修（护）费",{"v":500000,"d":"500,000.00"},{"v":500000,"d":"500,000.00"},{"v":500000,"d":"500,000.00"}]
["其他运转类","530000241100002006488","交通运输工程项目监管和路网监测专项经费","云南省公路路政管理总队","2140112","公路运输管理","30206","电费",{"v":450000,"d":"450,000.00"},{"v":450000,"d":"450,000.00"},{"v":450000,"d":"450,000.00"}]
["其他运转类","530000241100002006488","交通运输工程项目监管和路网监测专项经费","云南省公路路政管理总队","2140112","公路运输管理","30213","维修（护）费",{"v":5131860,"d":"5,131,860.00"},{"v":5131860,"d":"5,131,860.00"},{"v":5131860,"d":"5,131,860.00"}]
["其他运转类","530000241100002006488","交通运输工程项目监管和路网监测专项经费","云南省公路路政管理总队","2140112","公路运输管理","30214","租赁费",{"v":151340,"d":"151,340.00"},{"v":151340,"d":"151,340.00"},{"v":151340,"d":"151,340.00"}]
["其他运转类","530000241100002006488","交通运输工程项目监管和路网监测专项经费","云南省公路路政管理总队","2140112","公路运输管理","30226","劳务费",{"v":12000,"d":"12,000.00"},{"v":12000,"d":"12,000.00"},{"v":12000,"d":"12,000.00"}]
["其他运转类","530000241100002006488","交通运输工程项目监管和路网监测专项经费","云南省公路路政管理总队","2140112","公路运输管理","30227","委托业务费",{"v":2375300,"d":"2,375,300.00"},{"v":2375300,"d":"2,375,300.00"},{"v":2375300,"d":"2,375,300.00"}]
[null,null,"交通运输行业标准（定额）制修订与工程造价管理专项经费",{"$nulls":5},{"v":1750000,"d":"1,750,000.00"},{"v":1750000,"d":"1,750,000.00"},{"v":1750000,"d":"1,750,000.00"}]
["其他运转类","530000241100002006568","交通运输行业标准（定额）制修订与工程造价管理专项经费","云南省公路路政管理总队","2140114","公路和运输技术标准化建设","30227","委托业务费",{"v":1750000,"d":"1,750,000.00"},{"v":1750000,"d":"1,750,000.00"},{"v":1750000,"d":"1,750,000.00"}]
[null,null,"交通运输职业资格考试专项经费",{"$nulls":5},{"v":1518300,"d":"1,518,300.00"},{"v":1518300,"d":"1,518,300.00"}]
["专项业务类","530000231100001037613","交通运输职业资格考试专项经费","云南省公路路政管理总队","2140110","公路和运输安全","30227","委托业务费",{"v":1518300,"d":"1,518,300.00"},{"v":1518300,"d":"1,518,300.00"}]
[null,null,"界河维护经费",{"$nulls":5},{"v":1102320,"d":"1,102,320.00"},{"$nulls":4},{"v":1102320,"d":"1,102,320.00"}]
["事业发展类","530000241100003352803","界河维护经费","云南省公路路政管理总队","2140112","公路运输管理","30213","维修（护）费",{"v":1102320,"d":"1,102,320.00"},{"$nulls":4},{"v":1102320,"d":"1,102,320.00"}]
[null,null,"其他人员支出",{"$nulls":5},{"v":217000,"d":"217,000.00"},{"v":217000,"d":"217,000.00"},{"v":217000,"d":"217,000.00"}]
["民生类","530000231100001539889","其他人员支出","云南省公路路政管理总队","2140112","公路运输管理","30199","其他工资福利支出",{"v":217000,"d":"217,000.00"},{"v":217000,"d":"217,000.00"},{"v":217000,"d":"217,000.00"}]
[null,null,"省公路路政管理总队2025年省科技进步二等奖奖金经费",{"$nulls":5},{"v":100000,"d":"100,000.00"},{"$nulls":8},{"v":100000,"d":"100,000.00"},{"$nulls":4},{"v":100000,"d":"100,000.00"}]
["事业发展类","530000261100005170567","省公路路政管理总队2025年省科技进步二等奖奖金经费","云南省公路路政管理总队","2140112","公路运输管理","30213","维修（护）费",{"v":90000,"d":"90,000.00"},{"$nulls":8},{"v":90000,"d":"90,000.00"},{"$nulls":4},{"v":90000,"d":"90,000.00"}]
["事业发展类","530000261100005170567","省公路路政管理总队2025年省科技进步二等奖奖金经费","云南省公路路政管理总队","2140112","公路运输管理","30399","其他对个人和家庭的补助",{"v":10000,"d":"10,000.00"},{"$nulls":8},{"v":10000,"d":"10,000.00"},{"$nulls":4},{"v":10000,"d":"10,000.00"}]
[null,null,"信创项目专项资金",{"$nulls":5},{"v":40000,"d":"40,000.00"},{"v":40000,"d":"40,000.00"},{"v":40000,"d":"40,000.00"}]
["专项业务类","530000261100004756361","信创项目专项资金","云南省公路路政管理总队","2140102","一般行政管理事务","31007","信息网络及软件购置更新",{"v":40000,"d":"40,000.00"},{"v":40000,"d":"40,000.00"},{"v":40000,"d":"40,000.00"}]
[null,null,"政务信息化建设项目补助资金",{"$nulls":5},{"v":3963020,"d":"3,963,020.00"},{"v":1500000,"d":"1,500,000.00"},{"v":1500000,"d":"1,500,000.00"},null,null,{"v":2463020,"d":"2,463,020.00"}]
["专项业务类","530000251100003143473","政务信息化建设项目补助资金","云南省公路路政管理总队","2140109","交通运输信息化建设","31007","信息网络及软件购置更新",{"v":3963020,"d":"3,963,020.00"},{"v":1500000,"d":"1,500,000.00"},{"v":1500000,"d":"1,500,000.00"},null,null,{"v":2463020,"d":"2,463,020.00"}]
[null,null,"政务信息化运维服务项目补助资金",{"$nulls":5},{"v":18160000,"d":"18,160,000.00"},{"v":18160000,"d":"18,160,000.00"},{"v":18160000,"d":"18,160,000.00"}]
["其他运转类","530000241100002006623","政务信息化运维服务项目补助资金","云南省公路路政管理总队","2140109","交通运输信息化建设","30213","维修（护）费",{"v":17460200,"d":"17,460,200.00"},{"v":17460200,"d":"17,460,200.00"},{"v":17460200,"d":"17,460,200.00"}]
["其他运转类","530000241100002006623","政务信息化运维服务项目补助资金","云南省公路路政管理总队","2140109","交通运输信息化建设","30214","租赁费",{"v":699800,"d":"699,800.00"},{"v":699800,"d":"699,800.00"},{"v":699800,"d":"699,800.00"}]
["合  计",{"$nulls":7},{"v":36702740,"d":"36,702,740.00"},{"v":32537400,"d":"32,537,400.00"},{"v":31019100,"d":"31,019,100.00"},null,null,{"v":4065340,"d":"4,065,340.00"},{"$nulls":3},{"v":100000,"d":"100,000.00"},{"$nulls":4},{"v":100000,"d":"100,000.00"}]

{"sheet":"部门项目支出绩效目标表05-2","index":8,"n_rows":100,"n_cols":10,"rows_kept":100,"merged":[[1,0,1,9],[2,0,2,7],[7,0,44,0],[7,1,44,1],[45,0,50,0],[45,1,50,1],[51,0,56,0],[51,1,56,1],[57,0,59,0],[57,1,59,1],[60,0,82,0],[60,1,82,1],[83,0,86,0],[83,1,86,1],[87,0,89,0],[87,1,89,1],[90,0,92,0],[90,1,92,1],[93,0,99,0],[93,1,99,1]]}
[{"$nulls":9},"预算05-2表"]
["2026年部门项目支出绩效目标表"]
[{"$f":"\"单位名称：\"&\"云南省公路路政管理总队\"","v":"单位名称：云南省公路路政管理总队"}]
["单位名称、项目名称","项目年度绩效目标","一级指标","二级指标","三级指标","指标性质","指标值","度量单位","指标属性","指标内容"]
[1,2,3,4,5,6,7,8,9,10]
["云南省公路路政管理总队"]
["云南省公路路政管理总队"]
["政务信息化运维服务项目补助资金","依据交通运输部“十四五”规划及云南省“数字经济”建设要求，围绕“1157”总体架构，2026年聚焦全省交通运输行业网络、机房、网络安全及业务系统稳定运行，落实云南省公路路政管理总队（云南省综合交通发展中心）工作部署，核心绩效目标如下：\n1.网络链路及通信保障：完成链路租用采购，保障交通行业网络可用率≥99%；确保应急通信设备正常运转，支撑业务连续性。\n2.网络安全合规保障：完成10个三级信息系统的等保测评及密码测评，确保系统安全合规达标。\n3.应急与会议保障：突发应急事件及时响应；保障厅视频会议系统稳定运行。\n4.安全监测与演练：完成网络安全日常监测及重要节点值班值守，开展至少1次实战演练。\n5.12328热线保障：保障热线硬件设备正常运转、电话畅通可接；信息咨询答复率、限时办结率、答复满意率均≥90%。\n6.业务系统运维：完成信用、统计、治超、道路运输、政务办公、智能文件、电子证照、业财、交调、以奖代补等系统日常巡检与运维；按要求推进系统整合提升及功能优化，保障系统正常使用。\n7.网站及新媒体保障：保障省交通发展中心网站正常运转，网页可用。\n8.机房运维保障：开展行业机房日常巡检，保障机房设备及环境稳定。\n9.云南省公路工程造价管理信息化平台：做好造价文件审查、评审、管理建设等工作；保障平台系统功能正常使用、运维正常运转。\n10.云南省收费公路联网收费运营在线监管平台系统调试、维护及时率达到 100%。","产出指标","数量指标","交调系统月度巡检次数",">=","10","次","定量指标","反映按期完成2026年度交调系统月度巡检的数量指标。"]
["政务信息化运维服务项目补助资金","依据交通运输部“十四五”规划及云南省“数字经济”建设要求，围绕“1157”总体架构，2026年聚焦全省交通运输行业网络、机房、网络安全及业务系统稳定运行，落实云南省公路路政管理总队（云南省综合交通发展中心）工作部署，核心绩效目标如下：\n1.网络链路及通信保障：完成链路租用采购，保障交通行业网络可用率≥99%；确保应急通信设备正常运转，支撑业务连续性。\n2.网络安全合规保障：完成10个三级信息系统的等保测评及密码测评，确保系统安全合规达标。\n3.应急与会议保障：突发应急事件及时响应；保障厅视频会议系统稳定运行。\n4.安全监测与演练：完成网络安全日常监测及重要节点值班值守，开展至少1次实战演练。\n5.12328热线保障：保障热线硬件设备正常运转、电话畅通可接；信息咨询答复率、限时办结率、答复满意率均≥90%。\n6.业务系统运维：完成信用、统计、治超、道路运输、政务办公、智能文件、电子证照、业财、交调、以奖代补等系统日常巡检与运维；按要求推进系统整合提升及功能优化，保障系统正常使用。\n7.网站及新媒体保障：保障省交通发展中心网站正常运转，网页可用。\n8.机房运维保障：开展行业机房日常巡检，保障机房设备及环境稳定。\n9.云南省公路工程造价管理信息化平台：做好造价文件审查、评审、管理建设等工作；保障平台系统功能正常使用、运维正常运转。\n10.云南省收费公路联网收费运营在线监管平台系统调试、维护及时率达到 100%。","产出指标","数量指标","向部上传以奖代补考核数据次数",">=","4","次","定量指标","反映按期完成2026年度季报、年报数据报送工作数量指标。\n\n"]
["政务信息化运维服务项目补助资金","依据交通运输部“十四五”规划及云南省“数字经济”建设要求，围绕“1157”总体架构，2026年聚焦全省交通运输行业网络、机房、网络安全及业务系统稳定运行，落实云南省公路路政管理总队（云南省综合交通发展中心）工作部署，核心绩效目标如下：\n1.网络链路及通信保障：完成链路租用采购，保障交通行业网络可用率≥99%；确保应急通信设备正常运转，支撑业务连续性。\n2.网络安全合规保障：完成10个三级信息系统的等保测评及密码测评，确保系统安全合规达标。\n3.应急与会议保障：突发应急事件及时响应；保障厅视频会议系统稳定运行。\n4.安全监测与演练：完成网络安全日常监测及重要节点值班值守，开展至少1次实战演练。\n5.12328热线保障：保障热线硬件设备正常运转、电话畅通可接；信息咨询答复率、限时办结率、答复满意率均≥90%。\n6.业务系统运维：完成信用、统计、治超、道路运输、政务办公、智能文件、电子证照、业财、交调、以奖代补等系统日常巡检与运维；按要求推进系统整合提升及功能优化，保障系统正常使用。\n7.网站及新媒体保障：保障省交通发展中心网站正常运转，网页可用。\n8.机房运维保障：开展行业机房日常巡检，保障机房设备及环境稳定。\n9.云南省公路工程造价管理信息化平台：做好造价文件审查、评审、管理建设等工作；保障平台系统功能正常使用、运维正常运转。\n10.云南省收费公路联网收费运营在线监管平台系统调试、维护及时率达到 100%。","产出指标","数量指标","信息系统等保测评数量","=","10","个","定量指标","数量指标：信息系统等保测评数量，定量指标，对行业信息化系统进行等保测评，是系统安全使用的基础。"]
["政务信息化运维服务项目补助资金","依据交通运输部“十四五”规划及云南省“数字经济”建设要求，围绕“1157”总体架构，2026年聚焦全省交通运输行业网络、机房、网络安全及业务系统稳定运行，落实云南省公路路政管理总队（云南省综合交通发展中心）工作部署，核心绩效目标如下：\n1.网络链路及通信保障：完成链路租用采购，保障交通行业网络可用率≥99%；确保应急通信设备正常运转，支撑业务连续性。\n2.网络安全合规保障：完成10个三级信息系统的等保测评及密码测评，确保系统安全合规达标。\n3.应急与会议保障：突发应急事件及时响应；保障厅视频会议系统稳定运行。\n4.安全监测与演练：完成网络安全日常监测及重要节点值班值守，开展至少1次实战演练。\n5.12328热线保障：保障热线硬件设备正常运转、电话畅通可接；信息咨询答复率、限时办结率、答复满意率均≥90%。\n6.业务系统运维：完成信用、统计、治超、道路运输、政务办公、智能文件、电子证照、业财、交调、以奖代补等系统日常巡检与运维；按要求推进系统整合提升及功能优化，保障系统正常使用。\n7.网站及新媒体保障：保障省交通发展中心网站正常运转，网页可用。\n8.机房运维保障：开展行业机房日常巡检，保障机房设备及环境稳定。\n9.云南省公路工程造价管理信息化平台：做好造价文件审查、评审、管理建设等工作；保障平台系统功能正常使用、运维正常运转。\n10.云南省收费公路联网收费运营在线监管平台系统调试、维护及时率达到 100%。","产出指标","数量指标","开展至少一次网络安全实战演练",">=","1.00","次","定量指标","考核网络安全保障情况。"]
["政务信息化运维服务项目补助资金","依据交通运输部“十四五”规划及云南省“数字经济”建设要求，围绕“1157”总体架构，2026年聚焦全省交通运输行业网络、机房、网络安全及业务系统稳定运行，落实云南省公路路政管理总队（云南省综合交通发展中心）工作部署，核心绩效目标如下：\n1.网络链路及通信保障：完成链路租用采购，保障交通行业网络可用率≥99%；确保应急通信设备正常运转，支撑业务连续性。\n2.网络安全合规保障：完成10个三级信息系统的等保测评及密码测评，确保系统安全合规达标。\n3.应急与会议保障：突发应急事件及时响应；保障厅视频会议系统稳定运行。\n4.安全监测与演练：完成网络安全日常监测及重要节点值班值守，开展至少1次实战演练。\n5.12328热线保障：保障热线硬件设备正常运转、电话畅通可接；信息咨询答复率、限时办结率、答复满意率均≥90%。\n6.业务系统运维：完成信用、统计、治超、道路运输、政务办公、智能文件、电子证照、业财、交调、以奖代补等系统日常巡检与运维；按要求推进系统整合提升及功能优化，保障系统正常使用。\n7.网站及新媒体保障：保障省交通发展中心网站正常运转，网页可用。\n8.机房运维保障：开展行业机房日常巡检，保障机房设备及环境稳定。\n9.云南省公路工程造价管理信息化平台：做好造价文件审查、评审、管理建设等工作；保障平台系统功能正常使用、运维正常运转。\n10.云南省收费公路联网收费运营在线监管平台系统调试、维护及时率达到 100%。","产出指标","数量指标","行政审批系统预期用户量",">=","5000","名","定量指标","考核云南省交通运输行政审批“一网通办”平台预期用户数量。"]
["政务信息化运维服务项目补助资金","依据交通运输部“十四五”规划及云南省“数字经济”建设要求，围绕“1157”总体架构，2026年聚焦全省交通运输行业网络、机房、网络安全及业务系统稳定运行，落实云南省公路路政管理总队（云南省综合交通发展中心）工作部署，核心绩效目标如下：\n1.网络链路及通信保障：完成链路租用采购，保障交通行业网络可用率≥99%；确保应急通信设备正常运转，支撑业务连续性。\n2.网络安全合规保障：完成10个三级信息系统的等保测评及密码测评，确保系统安全合规达标。\n3.应急与会议保障：突发应急事件及时响应；保障厅视频会议系统稳定运行。\n4.安全监测与演练：完成网络安全日常监测及重要节点值班值守，开展至少1次实战演练。\n5.12328热线保障：保障热线硬件设备正常运转、电话畅通可接；信息咨询答复率、限时办结率、答复满意率均≥90%。\n6.业务系统运维：完成信用、统计、治超、道路运输、政务办公、智能文件、电子证照、业财、交调、以奖代补等系统日常巡检与运维；按要求推进系统整合提升及功能优化，保障系统正常使用。\n7.网站及新媒体保障：保障省交通发展中心网站正常运转，网页可用。\n8.机房运维保障：开展行业机房日常巡检，保障机房设备及环境稳定。\n9.云南省公路工程造价管理信息化平台：做好造价文件审查、评审、管理建设等工作；保障平台系统功能正常使用、运维正常运转。\n10.云南省收费公路联网收费运营在线监管平台系统调试、维护及时率达到 100%。","产出指标","数量指标","行政审批数据接口及数据质量运维","=","4","个","定量指标","反映完成四个行政审批相应系统接口：1、基础数据接口质量运维服务；2、业务数据接口质量运维；3、企业端数据交互标准接口质量维护；4、部级数据交互接口质量维护的运维服务情况。"]
["政务信息化运维服务项目补助资金","依据交通运输部“十四五”规划及云南省“数字经济”建设要求，围绕“1157”总体架构，2026年聚焦全省交通运输行业网络、机房、网络安全及业务系统稳定运行，落实云南省公路路政管理总队（云南省综合交通发展中心）工作部署，核心绩效目标如下：\n1.网络链路及通信保障：完成链路租用采购，保障交通行业网络可用率≥99%；确保应急通信设备正常运转，支撑业务连续性。\n2.网络安全合规保障：完成10个三级信息系统的等保测评及密码测评，确保系统安全合规达标。\n3.应急与会议保障：突发应急事件及时响应；保障厅视频会议系统稳定运行。\n4.安全监测与演练：完成网络安全日常监测及重要节点值班值守，开展至少1次实战演练。\n5.12328热线保障：保障热线硬件设备正常运转、电话畅通可接；信息咨询答复率、限时办结率、答复满意率均≥90%。\n6.业务系统运维：完成信用、统计、治超、道路运输、政务办公、智能文件、电子证照、业财、交调、以奖代补等系统日常巡检与运维；按要求推进系统整合提升及功能优化，保障系统正常使用。\n7.网站及新媒体保障：保障省交通发展中心网站正常运转，网页可用。\n8.机房运维保障：开展行业机房日常巡检，保障机房设备及环境稳定。\n9.云南省公路工程造价管理信息化平台：做好造价文件审查、评审、管理建设等工作；保障平台系统功能正常使用、运维正常运转。\n10.云南省收费公路联网收费运营在线监管平台系统调试、维护及时率达到 100%。","产出指标","数量指标","道路运输领域系统维护报表统计",">=","200","次","定量指标","提供道路运输领域相应系统的用户服务支持服务，主要通过现场、电话、QQ、微信等方式提供服务支持，为省级、全省16个州市、129个县级交通部门以及具备条件的口岸提供系统日常使用、业务数据报表统计服务。"]
["政务信息化运维服务项目补助资金","依据交通运输部“十四五”规划及云南省“数字经济”建设要求，围绕“1157”总体架构，2026年聚焦全省交通运输行业网络、机房、网络安全及业务系统稳定运行，落实云南省公路路政管理总队（云南省综合交通发展中心）工作部署，核心绩效目标如下：\n1.网络链路及通信保障：完成链路租用采购，保障交通行业网络可用率≥99%；确保应急通信设备正常运转，支撑业务连续性。\n2.网络安全合规保障：完成10个三级信息系统的等保测评及密码测评，确保系统安全合规达标。\n3.应急与会议保障：突发应急事件及时响应；保障厅视频会议系统稳定运行。\n4.安全监测与演练：完成网络安全日常监测及重要节点值班值守，开展至少1次实战演练。\n5.12328热线保障：保障热线硬件设备正常运转、电话畅通可接；信息咨询答复率、限时办结率、答复满意率均≥90%。\n6.业务系统运维：完成信用、统计、治超、道路运输、政务办公、智能文件、电子证照、业财、交调、以奖代补等系统日常巡检与运维；按要求推进系统整合提升及功能优化，保障系统正常使用。\n7.网站及新媒体保障：保障省交通发展中心网站正常运转，网页可用。\n8.机房运维保障：开展行业机房日常巡检，保障机房设备及环境稳定。\n9.云南省公路工程造价管理信息化平台：做好造价文件审查、评审、管理建设等工作；保障平台系统功能正常使用、运维正常运转。\n10.云南省收费公路联网收费运营在线监管平台系统调试、维护及时率达到 100%。","产出指标","数量指标","道路运输领域系统维护咨询及故障",">=","50","次","定量指标","提供道路运输领域相应系统的用户服务支持服务，主要通过现场、电话、QQ、微信等方式提供服务支持，为省级、全省16个州市、129个县级交通部门以及具备条件的口岸提供系统操作咨询以及系统故障排查、系统稳定运行、数据备份等服务。"]
["政务信息化运维服务项目补助资金","依据交通运输部“十四五”规划及云南省“数字经济”建设要求，围绕“1157”总体架构，2026年聚焦全省交通运输行业网络、机房、网络安全及业务系统稳定运行，落实云南省公路路政管理总队（云南省综合交通发展中心）工作部署，核心绩效目标如下：\n1.网络链路及通信保障：完成链路租用采购，保障交通行业网络可用率≥99%；确保应急通信设备正常运转，支撑业务连续性。\n2.网络安全合规保障：完成10个三级信息系统的等保测评及密码测评，确保系统安全合规达标。\n3.应急与会议保障：突发应急事件及时响应；保障厅视频会议系统稳定运行。\n4.安全监测与演练：完成网络安全日常监测及重要节点值班值守，开展至少1次实战演练。\n5.12328热线保障：保障热线硬件设备正常运转、电话畅通可接；信息咨询答复率、限时办结率、答复满意率均≥90%。\n6.业务系统运维：完成信用、统计、治超、道路运输、政务办公、智能文件、电子证照、业财、交调、以奖代补等系统日常巡检与运维；按要求推进系统整合提升及功能优化，保障系统正常使用。\n7.网站及新媒体保障：保障省交通发展中心网站正常运转，网页可用。\n8.机房运维保障：开展行业机房日常巡检，保障机房设备及环境稳定。\n9.云南省公路工程造价管理信息化平台：做好造价文件审查、评审、管理建设等工作；保障平台系统功能正常使用、运维正常运转。\n10.云南省收费公路联网收费运营在线监管平台系统调试、维护及时率达到 100%。","产出指标","数量指标","造价平台线上受理文件审查数",">=","10","个","定量指标","线上受理造价文件审查数量。"]
["政务信息化运维服务项目补助资金","依据交通运输部“十四五”规划及云南省“数字经济”建设要求，围绕“1157”总体架构，2026年聚焦全省交通运输行业网络、机房、网络安全及业务系统稳定运行，落实云南省公路路政管理总队（云南省综合交通发展中心）工作部署，核心绩效目标如下：\n1.网络链路及通信保障：完成链路租用采购，保障交通行业网络可用率≥99%；确保应急通信设备正常运转，支撑业务连续性。\n2.网络安全合规保障：完成10个三级信息系统的等保测评及密码测评，确保系统安全合规达标。\n3.应急与会议保障：突发应急事件及时响应；保障厅视频会议系统稳定运行。\n4.安全监测与演练：完成网络安全日常监测及重要节点值班值守，开展至少1次实战演练。\n5.12328热线保障：保障热线硬件设备正常运转、电话畅通可接；信息咨询答复率、限时办结率、答复满意率均≥90%。\n6.业务系统运维：完成信用、统计、治超、道路运输、政务办公、智能文件、电子证照、业财、交调、以奖代补等系统日常巡检与运维；按要求推进系统整合提升及功能优化，保障系统正常使用。\n7.网站及新媒体保障：保障省交通发展中心网站正常运转，网页可用。\n8.机房运维保障：开展行业机房日常巡检，保障机房设备及环境稳定。\n9.云南省公路工程造价管理信息化平台：做好造价文件审查、评审、管理建设等工作；保障平台系统功能正常使用、运维正常运转。\n10.云南省收费公路联网收费运营在线监管平台系统调试、维护及时率达到 100%。","产出指标","数量指标","系统密码应用测评数量","=","10","个","定量指标","完成10个三级等保系统的密码应用测评工作，出具测评报告。"]
["政务信息化运维服务项目补助资金","依据交通运输部“十四五”规划及云南省“数字经济”建设要求，围绕“1157”总体架构，2026年聚焦全省交通运输行业网络、机房、网络安全及业务系统稳定运行，落实云南省公路路政管理总队（云南省综合交通发展中心）工作部署，核心绩效目标如下：\n1.网络链路及通信保障：完成链路租用采购，保障交通行业网络可用率≥99%；确保应急通信设备正常运转，支撑业务连续性。\n2.网络安全合规保障：完成10个三级信息系统的等保测评及密码测评，确保系统安全合规达标。\n3.应急与会议保障：突发应急事件及时响应；保障厅视频会议系统稳定运行。\n4.安全监测与演练：完成网络安全日常监测及重要节点值班值守，开展至少1次实战演练。\n5.12328热线保障：保障热线硬件设备正常运转、电话畅通可接；信息咨询答复率、限时办结率、答复满意率均≥90%。\n6.业务系统运维：完成信用、统计、治超、道路运输、政务办公、智能文件、电子证照、业财、交调、以奖代补等系统日常巡检与运维；按要求推进系统整合提升及功能优化，保障系统正常使用。\n7.网站及新媒体保障：保障省交通发展中心网站正常运转，网页可用。\n8.机房运维保障：开展行业机房日常巡检，保障机房设备及环境稳定。\n9.云南省公路工程造价管理信息化平台：做好造价文件审查、评审、管理建设等工作；保障平台系统功能正常使用、运维正常运转。\n10.云南省收费公路联网收费运营在线监管平台系统调试、维护及时率达到 100%。","产出指标","数量指标","公路交通量报告完成率",">=","90","%","定量指标","全年完成报告数量与总报告之比（每年春节、十一“黄金周”交通运行分析报告，每日交通量报告、每周交通量报告、每月交通量报告、节假日交通量报告等）。"]
["政务信息化运维服务项目补助资金","依据交通运输部“十四五”规划及云南省“数字经济”建设要求，围绕“1157”总体架构，2026年聚焦全省交通运输行业网络、机房、网络安全及业务系统稳定运行，落实云南省公路路政管理总队（云南省综合交通发展中心）工作部署，核心绩效目标如下：\n1.网络链路及通信保障：完成链路租用采购，保障交通行业网络可用率≥99%；确保应急通信设备正常运转，支撑业务连续性。\n2.网络安全合规保障：完成10个三级信息系统的等保测评及密码测评，确保系统安全合规达标。\n3.应急与会议保障：突发应急事件及时响应；保障厅视频会议系统稳定运行。\n4.安全监测与演练：完成网络安全日常监测及重要节点值班值守，开展至少1次实战演练。\n5.12328热线保障：保障热线硬件设备正常运转、电话畅通可接；信息咨询答复率、限时办结率、答复满意率均≥90%。\n6.业务系统运维：完成信用、统计、治超、道路运输、政务办公、智能文件、电子证照、业财、交调、以奖代补等系统日常巡检与运维；按要求推进系统整合提升及功能优化，保障系统正常使用。\n7.网站及新媒体保障：保障省交通发展中心网站正常运转，网页可用。\n8.机房运维保障：开展行业机房日常巡检，保障机房设备及环境稳定。\n9.云南省公路工程造价管理信息化平台：做好造价文件审查、评审、管理建设等工作；保障平台系统功能正常使用、运维正常运转。\n10.云南省收费公路联网收费运营在线监管平台系统调试、维护及时率达到 100%。","产出指标","数量指标","省级视频云平台推送视频数量",">=","20000","路","定量指标","云南省交通运输厅云南省交通视频联网监测省级云平台按照交通运输部新要求完成20000路视频的推送工作。"]
["政务信息化运维服务项目补助资金","依据交通运输部“十四五”规划及云南省“数字经济”建设要求，围绕“1157”总体架构，2026年聚焦全省交通运输行业网络、机房、网络安全及业务系统稳定运行，落实云南省公路路政管理总队（云南省综合交通发展中心）工作部署，核心绩效目标如下：\n1.网络链路及通信保障：完成链路租用采购，保障交通行业网络可用率≥99%；确保应急通信设备正常运转，支撑业务连续性。\n2.网络安全合规保障：完成10个三级信息系统的等保测评及密码测评，确保系统安全合规达标。\n3.应急与会议保障：突发应急事件及时响应；保障厅视频会议系统稳定运行。\n4.安全监测与演练：完成网络安全日常监测及重要节点值班值守，开展至少1次实战演练。\n5.12328热线保障：保障热线硬件设备正常运转、电话畅通可接；信息咨询答复率、限时办结率、答复满意率均≥90%。\n6.业务系统运维：完成信用、统计、治超、道路运输、政务办公、智能文件、电子证照、业财、交调、以奖代补等系统日常巡检与运维；按要求推进系统整合提升及功能优化，保障系统正常使用。\n7.网站及新媒体保障：保障省交通发展中心网站正常运转，网页可用。\n8.机房运维保障：开展行业机房日常巡检，保障机房设备及环境稳定。\n9.云南省公路工程造价管理信息化平台：做好造价文件审查、评审、管理建设等工作；保障平台系统功能正常使用、运维正常运转。\n10.云南省收费公路联网收费运营在线监管平台系统调试、维护及时率达到 100%。","产出指标","数量指标","业财系统业务咨询回复率",">=","97","%","定量指标","反映业财系统用户反映问题的回复效率。"]
["政务信息化运维服务项目补助资金","依据交通运输部“十四五”规划及云南省“数字经济”建设要求，围绕“1157”总体架构，2026年聚焦全省交通运输行业网络、机房、网络安全及业务系统稳定运行，落实云南省公路路政管理总队（云南省综合交通发展中心）工作部署，核心绩效目标如下：\n1.网络链路及通信保障：完成链路租用采购，保障交通行业网络可用率≥99%；确保应急通信设备正常运转，支撑业务连续性。\n2.网络安全合规保障：完成10个三级信息系统的等保测评及密码测评，确保系统安全合规达标。\n3.应急与会议保障：突发应急事件及时响应；保障厅视频会议系统稳定运行。\n4.安全监测与演练：完成网络安全日常监测及重要节点值班值守，开展至少1次实战演练。\n5.12328热线保障：保障热线硬件设备正常运转、电话畅通可接；信息咨询答复率、限时办结率、答复满意率均≥90%。\n6.业务系统运维：完成信用、统计、治超、道路运输、政务办公、智能文件、电子证照、业财、交调、以奖代补等系统日常巡检与运维；按要求推进系统整合提升及功能优化，保障系统正常使用。\n7.网站及新媒体保障：保障省交通发展中心网站正常运转，网页可用。\n8.机房运维保障：开展行业机房日常巡检，保障机房设备及环境稳定。\n9.云南省公路工程造价管理信息化平台：做好造价文件审查、评审、管理建设等工作；保障平台系统功能正常使用、运维正常运转。\n10.云南省收费公路联网收费运营在线监管平台系统调试、维护及时率达到 100%。","产出指标","质量指标","应急通信系统可用率",">=","99","%","定量指标","系统可用率=系统正常运转时间/全年总时长*100%。"]
["政务信息化运维服务项目补助资金","依据交通运输部“十四五”规划及云南省“数字经济”建设要求，围绕“1157”总体架构，2026年聚焦全省交通运输行业网络、机房、网络安全及业务系统稳定运行，落实云南省公路路政管理总队（云南省综合交通发展中心）工作部署，核心绩效目标如下：\n1.网络链路及通信保障：完成链路租用采购，保障交通行业网络可用率≥99%；确保应急通信设备正常运转，支撑业务连续性。\n2.网络安全合规保障：完成10个三级信息系统的等保测评及密码测评，确保系统安全合规达标。\n3.应急与会议保障：突发应急事件及时响应；保障厅视频会议系统稳定运行。\n4.安全监测与演练：完成网络安全日常监测及重要节点值班值守，开展至少1次实战演练。\n5.12328热线保障：保障热线硬件设备正常运转、电话畅通可接；信息咨询答复率、限时办结率、答复满意率均≥90%。\n6.业务系统运维：完成信用、统计、治超、道路运输、政务办公、智能文件、电子证照、业财、交调、以奖代补等系统日常巡检与运维；按要求推进系统整合提升及功能优化，保障系统正常使用。\n7.网站及新媒体保障：保障省交通发展中心网站正常运转，网页可用。\n8.机房运维保障：开展行业机房日常巡检，保障机房设备及环境稳定。\n9.云南省公路工程造价管理信息化平台：做好造价文件审查、评审、管理建设等工作；保障平台系统功能正常使用、运维正常运转。\n10.云南省收费公路联网收费运营在线监管平台系统调试、维护及时率达到 100%。","产出指标","质量指标","网站数据备份率",">=","99","%","定量指标","做好省综合交通发展中心网站的数据备份，每天进行一次网站备份，并采用多种安全保障措施保证网站安全运行。"]
["政务信息化运维服务项目补助资金","依据交通运输部“十四五”规划及云南省“数字经济”建设要求，围绕“1157”总体架构，2026年聚焦全省交通运输行业网络、机房、网络安全及业务系统稳定运行，落实云南省公路路政管理总队（云南省综合交通发展中心）工作部署，核心绩效目标如下：\n1.网络链路及通信保障：完成链路租用采购，保障交通行业网络可用率≥99%；确保应急通信设备正常运转，支撑业务连续性。\n2.网络安全合规保障：完成10个三级信息系统的等保测评及密码测评，确保系统安全合规达标。\n3.应急与会议保障：突发应急事件及时响应；保障厅视频会议系统稳定运行。\n4.安全监测与演练：完成网络安全日常监测及重要节点值班值守，开展至少1次实战演练。\n5.12328热线保障：保障热线硬件设备正常运转、电话畅通可接；信息咨询答复率、限时办结率、答复满意率均≥90%。\n6.业务系统运维：完成信用、统计、治超、道路运输、政务办公、智能文件、电子证照、业财、交调、以奖代补等系统日常巡检与运维；按要求推进系统整合提升及功能优化，保障系统正常使用。\n7.网站及新媒体保障：保障省交通发展中心网站正常运转，网页可用。\n8.机房运维保障：开展行业机房日常巡检，保障机房设备及环境稳定。\n9.云南省公路工程造价管理信息化平台：做好造价文件审查、评审、管理建设等工作；保障平台系统功能正常使用、运维正常运转。\n10.云南省收费公路联网收费运营在线监管平台系统调试、维护及时率达到 100%。","产出指标","质量指标","联网收费在线监管平台维护及时度","=","100","%","定量指标","反映收费公路联网收费在线监管平台系统调试、维护及时度情况。"]
["政务信息化运维服务项目补助资金","依据交通运输部“十四五”规划及云南省“数字经济”建设要求，围绕“1157”总体架构，2026年聚焦全省交通运输行业网络、机房、网络安全及业务系统稳定运行，落实云南省公路路政管理总队（云南省综合交通发展中心）工作部署，核心绩效目标如下：\n1.网络链路及通信保障：完成链路租用采购，保障交通行业网络可用率≥99%；确保应急通信设备正常运转，支撑业务连续性。\n2.网络安全合规保障：完成10个三级信息系统的等保测评及密码测评，确保系统安全合规达标。\n3.应急与会议保障：突发应急事件及时响应；保障厅视频会议系统稳定运行。\n4.安全监测与演练：完成网络安全日常监测及重要节点值班值守，开展至少1次实战演练。\n5.12328热线保障：保障热线硬件设备正常运转、电话畅通可接；信息咨询答复率、限时办结率、答复满意率均≥90%。\n6.业务系统运维：完成信用、统计、治超、道路运输、政务办公、智能文件、电子证照、业财、交调、以奖代补等系统日常巡检与运维；按要求推进系统整合提升及功能优化，保障系统正常使用。\n7.网站及新媒体保障：保障省交通发展中心网站正常运转，网页可用。\n8.机房运维保障：开展行业机房日常巡检，保障机房设备及环境稳定。\n9.云南省公路工程造价管理信息化平台：做好造价文件审查、评审、管理建设等工作；保障平台系统功能正常使用、运维正常运转。\n10.云南省收费公路联网收费运营在线监管平台系统调试、维护及时率达到 100%。","产出指标","质量指标","行政审批系统全年可用率",">=","95","%","定量指标","各系统运行正常，保障业务正常开展。"]
["政务信息化运维服务项目补助资金","依据交通运输部“十四五”规划及云南省“数字经济”建设要求，围绕“1157”总体架构，2026年聚焦全省交通运输行业网络、机房、网络安全及业务系统稳定运行，落实云南省公路路政管理总队（云南省综合交通发展中心）工作部署，核心绩效目标如下：\n1.网络链路及通信保障：完成链路租用采购，保障交通行业网络可用率≥99%；确保应急通信设备正常运转，支撑业务连续性。\n2.网络安全合规保障：完成10个三级信息系统的等保测评及密码测评，确保系统安全合规达标。\n3.应急与会议保障：突发应急事件及时响应；保障厅视频会议系统稳定运行。\n4.安全监测与演练：完成网络安全日常监测及重要节点值班值守，开展至少1次实战演练。\n5.12328热线保障：保障热线硬件设备正常运转、电话畅通可接；信息咨询答复率、限时办结率、答复满意率均≥90%。\n6.业务系统运维：完成信用、统计、治超、道路运输、政务办公、智能文件、电子证照、业财、交调、以奖代补等系统日常巡检与运维；按要求推进系统整合提升及功能优化，保障系统正常使用。\n7.网站及新媒体保障：保障省交通发展中心网站正常运转，网页可用。\n8.机房运维保障：开展行业机房日常巡检，保障机房设备及环境稳定。\n9.云南省公路工程造价管理信息化平台：做好造价文件审查、评审、管理建设等工作；保障平台系统功能正常使用、运维正常运转。\n10.云南省收费公路联网收费运营在线监管平台系统调试、维护及时率达到 100%。","产出指标","质量指标","道路运输领域系统维护系统可用率",">=","95","%","定量指标","各系统运行正常，保障业务正常开展。"]
["政务信息化运维服务项目补助资金","依据交通运输部“十四五”规划及云南省“数字经济”建设要求，围绕“1157”总体架构，2026年聚焦全省交通运输行业网络、机房、网络安全及业务系统稳定运行，落实云南省公路路政管理总队（云南省综合交通发展中心）工作部署，核心绩效目标如下：\n1.网络链路及通信保障：完成链路租用采购，保障交通行业网络可用率≥99%；确保应急通信设备正常运转，支撑业务连续性。\n2.网络安全合规保障：完成10个三级信息系统的等保测评及密码测评，确保系统安全合规达标。\n3.应急与会议保障：突发应急事件及时响应；保障厅视频会议系统稳定运行。\n4.安全监测与演练：完成网络安全日常监测及重要节点值班值守，开展至少1次实战演练。\n5.12328热线保障：保障热线硬件设备正常运转、电话畅通可接；信息咨询答复率、限时办结率、答复满意率均≥90%。\n6.业务系统运维：完成信用、统计、治超、道路运输、政务办公、智能文件、电子证照、业财、交调、以奖代补等系统日常巡检与运维；按要求推进系统整合提升及功能优化，保障系统正常使用。\n7.网站及新媒体保障：保障省交通发展中心网站正常运转，网页可用。\n8.机房运维保障：开展行业机房日常巡检，保障机房设备及环境稳定。\n9.云南省公路工程造价管理信息化平台：做好造价文件审查、评审、管理建设等工作；保障平台系统功能正常使用、运维正常运转。\n10.云南省收费公路联网收费运营在线监管平台系统调试、维护及时率达到 100%。","产出指标","质量指标","厅政务办公系统正常运行率",">=","95","%","定量指标","系统正常运行率=系统正常运转时间/全年总时长*100%。考察系统正常运转。"]
["政务信息化运维服务项目补助资金","依据交通运输部“十四五”规划及云南省“数字经济”建设要求，围绕“1157”总体架构，2026年聚焦全省交通运输行业网络、机房、网络安全及业务系统稳定运行，落实云南省公路路政管理总队（云南省综合交通发展中心）工作部署，核心绩效目标如下：\n1.网络链路及通信保障：完成链路租用采购，保障交通行业网络可用率≥99%；确保应急通信设备正常运转，支撑业务连续性。\n2.网络安全合规保障：完成10个三级信息系统的等保测评及密码测评，确保系统安全合规达标。\n3.应急与会议保障：突发应急事件及时响应；保障厅视频会议系统稳定运行。\n4.安全监测与演练：完成网络安全日常监测及重要节点值班值守，开展至少1次实战演练。\n5.12328热线保障：保障热线硬件设备正常运转、电话畅通可接；信息咨询答复率、限时办结率、答复满意率均≥90%。\n6.业务系统运维：完成信用、统计、治超、道路运输、政务办公、智能文件、电子证照、业财、交调、以奖代补等系统日常巡检与运维；按要求推进系统整合提升及功能优化，保障系统正常使用。\n7.网站及新媒体保障：保障省交通发展中心网站正常运转，网页可用。\n8.机房运维保障：开展行业机房日常巡检，保障机房设备及环境稳定。\n9.云南省公路工程造价管理信息化平台：做好造价文件审查、评审、管理建设等工作；保障平台系统功能正常使用、运维正常运转。\n10.云南省收费公路联网收费运营在线监管平台系统调试、维护及时率达到 100%。","产出指标","质量指标","数字证书系统正常运行率",">=","95","%","定量指标","系统正常运行率=系统正常运转时间/全年总时长*100%。考察系统正常运转。"]
["政务信息化运维服务项目补助资金","依据交通运输部“十四五”规划及云南省“数字经济”建设要求，围绕“1157”总体架构，2026年聚焦全省交通运输行业网络、机房、网络安全及业务系统稳定运行，落实云南省公路路政管理总队（云南省综合交通发展中心）工作部署，核心绩效目标如下：\n1.网络链路及通信保障：完成链路租用采购，保障交通行业网络可用率≥99%；确保应急通信设备正常运转，支撑业务连续性。\n2.网络安全合规保障：完成10个三级信息系统的等保测评及密码测评，确保系统安全合规达标。\n3.应急与会议保障：突发应急事件及时响应；保障厅视频会议系统稳定运行。\n4.安全监测与演练：完成网络安全日常监测及重要节点值班值守，开展至少1次实战演练。\n5.12328热线保障：保障热线硬件设备正常运转、电话畅通可接；信息咨询答复率、限时办结率、答复满意率均≥90%。\n6.业务系统运维：完成信用、统计、治超、道路运输、政务办公、智能文件、电子证照、业财、交调、以奖代补等系统日常巡检与运维；按要求推进系统整合提升及功能优化，保障系统正常使用。\n7.网站及新媒体保障：保障省交通发展中心网站正常运转，网页可用。\n8.机房运维保障：开展行业机房日常巡检，保障机房设备及环境稳定。\n9.云南省公路工程造价管理信息化平台：做好造价文件审查、评审、管理建设等工作；保障平台系统功能正常使用、运维正常运转。\n10.云南省收费公路联网收费运营在线监管平台系统调试、维护及时率达到 100%。","产出指标","质量指标","视频会议系统可用率",">=","99","%","定量指标","系统可用率=系统正常运转时间/全年总时长*100%。"]
["政务信息化运维服务项目补助资金","依据交通运输部“十四五”规划及云南省“数字经济”建设要求，围绕“1157”总体架构，2026年聚焦全省交通运输行业网络、机房、网络安全及业务系统稳定运行，落实云南省公路路政管理总队（云南省综合交通发展中心）工作部署，核心绩效目标如下：\n1.网络链路及通信保障：完成链路租用采购，保障交通行业网络可用率≥99%；确保应急通信设备正常运转，支撑业务连续性。\n2.网络安全合规保障：完成10个三级信息系统的等保测评及密码测评，确保系统安全合规达标。\n3.应急与会议保障：突发应急事件及时响应；保障厅视频会议系统稳定运行。\n4.安全监测与演练：完成网络安全日常监测及重要节点值班值守，开展至少1次实战演练。\n5.12328热线保障：保障热线硬件设备正常运转、电话畅通可接；信息咨询答复率、限时办结率、答复满意率均≥90%。\n6.业务系统运维：完成信用、统计、治超、道路运输、政务办公、智能文件、电子证照、业财、交调、以奖代补等系统日常巡检与运维；按要求推进系统整合提升及功能优化，保障系统正常使用。\n7.网站及新媒体保障：保障省交通发展中心网站正常运转，网页可用。\n8.机房运维保障：开展行业机房日常巡检，保障机房设备及环境稳定。\n9.云南省公路工程造价管理信息化平台：做好造价文件审查、评审、管理建设等工作；保障平台系统功能正常使用、运维正常运转。\n10.云南省收费公路联网收费运营在线监管平台系统调试、维护及时率达到 100%。","产出指标","质量指标","行业专网网络设备可用率",">=","99","%","定量指标","网络设备可用率=网络设备正常运转时间/全年总时长*100%。"]
["政务信息化运维服务项目补助资金","依据交通运输部“十四五”规划及云南省“数字经济”建设要求，围绕“1157”总体架构，2026年聚焦全省交通运输行业网络、机房、网络安全及业务系统稳定运行，落实云南省公路路政管理总队（云南省综合交通发展中心）工作部署，核心绩效目标如下：\n1.网络链路及通信保障：完成链路租用采购，保障交通行业网络可用率≥99%；确保应急通信设备正常运转，支撑业务连续性。\n2.网络安全合规保障：完成10个三级信息系统的等保测评及密码测评，确保系统安全合规达标。\n3.应急与会议保障：突发应急事件及时响应；保障厅视频会议系统稳定运行。\n4.安全监测与演练：完成网络安全日常监测及重要节点值班值守，开展至少1次实战演练。\n5.12328热线保障：保障热线硬件设备正常运转、电话畅通可接；信息咨询答复率、限时办结率、答复满意率均≥90%。\n6.业务系统运维：完成信用、统计、治超、道路运输、政务办公、智能文件、电子证照、业财、交调、以奖代补等系统日常巡检与运维；按要求推进系统整合提升及功能优化，保障系统正常使用。\n7.网站及新媒体保障：保障省交通发展中心网站正常运转，网页可用。\n8.机房运维保障：开展行业机房日常巡检，保障机房设备及环境稳定。\n9.云南省公路工程造价管理信息化平台：做好造价文件审查、评审、管理建设等工作；保障平台系统功能正常使用、运维正常运转。\n10.云南省收费公路联网收费运营在线监管平台系统调试、维护及时率达到 100%。","产出指标","质量指标","云南省交通运输厅行业机房可用率",">=","99","%","定量指标","交通运输厅行业机房可用率=机房正常运转时间/全年总时长*100%。\n"]
["政务信息化运维服务项目补助资金","依据交通运输部“十四五”规划及云南省“数字经济”建设要求，围绕“1157”总体架构，2026年聚焦全省交通运输行业网络、机房、网络安全及业务系统稳定运行，落实云南省公路路政管理总队（云南省综合交通发展中心）工作部署，核心绩效目标如下：\n1.网络链路及通信保障：完成链路租用采购，保障交通行业网络可用率≥99%；确保应急通信设备正常运转，支撑业务连续性。\n2.网络安全合规保障：完成10个三级信息系统的等保测评及密码测评，确保系统安全合规达标。\n3.应急与会议保障：突发应急事件及时响应；保障厅视频会议系统稳定运行。\n4.安全监测与演练：完成网络安全日常监测及重要节点值班值守，开展至少1次实战演练。\n5.12328热线保障：保障热线硬件设备正常运转、电话畅通可接；信息咨询答复率、限时办结率、答复满意率均≥90%。\n6.业务系统运维：完成信用、统计、治超、道路运输、政务办公、智能文件、电子证照、业财、交调、以奖代补等系统日常巡检与运维；按要求推进系统整合提升及功能优化，保障系统正常使用。\n7.网站及新媒体保障：保障省交通发展中心网站正常运转，网页可用。\n8.机房运维保障：开展行业机房日常巡检，保障机房设备及环境稳定。\n9.云南省公路工程造价管理信息化平台：做好造价文件审查、评审、管理建设等工作；保障平台系统功能正常使用、运维正常运转。\n10.云南省收费公路联网收费运营在线监管平台系统调试、维护及时率达到 100%。","产出指标","质量指标","网络可用率",">=","99","%","定量指标","考核网络全年可用率，体现网络正常运转。\n"]
["政务信息化运维服务项目补助资金","依据交通运输部“十四五”规划及云南省“数字经济”建设要求，围绕“1157”总体架构，2026年聚焦全省交通运输行业网络、机房、网络安全及业务系统稳定运行，落实云南省公路路政管理总队（云南省综合交通发展中心）工作部署，核心绩效目标如下：\n1.网络链路及通信保障：完成链路租用采购，保障交通行业网络可用率≥99%；确保应急通信设备正常运转，支撑业务连续性。\n2.网络安全合规保障：完成10个三级信息系统的等保测评及密码测评，确保系统安全合规达标。\n3.应急与会议保障：突发应急事件及时响应；保障厅视频会议系统稳定运行。\n4.安全监测与演练：完成网络安全日常监测及重要节点值班值守，开展至少1次实战演练。\n5.12328热线保障：保障热线硬件设备正常运转、电话畅通可接；信息咨询答复率、限时办结率、答复满意率均≥90%。\n6.业务系统运维：完成信用、统计、治超、道路运输、政务办公、智能文件、电子证照、业财、交调、以奖代补等系统日常巡检与运维；按要求推进系统整合提升及功能优化，保障系统正常使用。\n7.网站及新媒体保障：保障省交通发展中心网站正常运转，网页可用。\n8.机房运维保障：开展行业机房日常巡检，保障机房设备及环境稳定。\n9.云南省公路工程造价管理信息化平台：做好造价文件审查、评审、管理建设等工作；保障平台系统功能正常使用、运维正常运转。\n10.云南省收费公路联网收费运营在线监管平台系统调试、维护及时率达到 100%。","产出指标","质量指标","治超系统正常运行时间",">=","99","%","定量指标","系统可用率=系统正常运转时间/全年总时长*100%。"]
["政务信息化运维服务项目补助资金","依据交通运输部“十四五”规划及云南省“数字经济”建设要求，围绕“1157”总体架构，2026年聚焦全省交通运输行业网络、机房、网络安全及业务系统稳定运行，落实云南省公路路政管理总队（云南省综合交通发展中心）工作部署，核心绩效目标如下：\n1.网络链路及通信保障：完成链路租用采购，保障交通行业网络可用率≥99%；确保应急通信设备正常运转，支撑业务连续性。\n2.网络安全合规保障：完成10个三级信息系统的等保测评及密码测评，确保系统安全合规达标。\n3.应急与会议保障：突发应急事件及时响应；保障厅视频会议系统稳定运行。\n4.安全监测与演练：完成网络安全日常监测及重要节点值班值守，开展至少1次实战演练。\n5.12328热线保障：保障热线硬件设备正常运转、电话畅通可接；信息咨询答复率、限时办结率、答复满意率均≥90%。\n6.业务系统运维：完成信用、统计、治超、道路运输、政务办公、智能文件、电子证照、业财、交调、以奖代补等系统日常巡检与运维；按要求推进系统整合提升及功能优化，保障系统正常使用。\n7.网站及新媒体保障：保障省交通发展中心网站正常运转，网页可用。\n8.机房运维保障：开展行业机房日常巡检，保障机房设备及环境稳定。\n9.云南省公路工程造价管理信息化平台：做好造价文件审查、评审、管理建设等工作；保障平台系统功能正常使用、运维正常运转。\n10.云南省收费公路联网收费运营在线监管平台系统调试、维护及时率达到 100%。","产出指标","时效指标","交调系统故障处理响应时间","<=","48","小时","定量指标","反映系统故障处理情况，统计时间为从接到故障报修后，到回复故障原因的时间间隔。"]
["政务信息化运维服务项目补助资金","依据交通运输部“十四五”规划及云南省“数字经济”建设要求，围绕“1157”总体架构，2026年聚焦全省交通运输行业网络、机房、网络安全及业务系统稳定运行，落实云南省公路路政管理总队（云南省综合交通发展中心）工作部署，核心绩效目标如下：\n1.网络链路及通信保障：完成链路租用采购，保障交通行业网络可用率≥99%；确保应急通信设备正常运转，支撑业务连续性。\n2.网络安全合规保障：完成10个三级信息系统的等保测评及密码测评，确保系统安全合规达标。\n3.应急与会议保障：突发应急事件及时响应；保障厅视频会议系统稳定运行。\n4.安全监测与演练：完成网络安全日常监测及重要节点值班值守，开展至少1次实战演练。\n5.12328热线保障：保障热线硬件设备正常运转、电话畅通可接；信息咨询答复率、限时办结率、答复满意率均≥90%。\n6.业务系统运维：完成信用、统计、治超、道路运输、政务办公、智能文件、电子证照、业财、交调、以奖代补等系统日常巡检与运维；按要求推进系统整合提升及功能优化，保障系统正常使用。\n7.网站及新媒体保障：保障省交通发展中心网站正常运转，网页可用。\n8.机房运维保障：开展行业机房日常巡检，保障机房设备及环境稳定。\n9.云南省公路工程造价管理信息化平台：做好造价文件审查、评审、管理建设等工作；保障平台系统功能正常使用、运维正常运转。\n10.云南省收费公路联网收费运营在线监管平台系统调试、维护及时率达到 100%。","产出指标","时效指标","12328热线限时办结率",">=","90","%","定量指标","呼叫中心限时办结率=按时完成办结次数/有效接听数量*100%。通过呼叫中心限时办结率，考核行业单位在履行行业职责，为群众及行业单位在规定时间内提供服务，解决群众问题，是建设“人民满意交通”的基本条件。"]
["政务信息化运维服务项目补助资金","依据交通运输部“十四五”规划及云南省“数字经济”建设要求，围绕“1157”总体架构，2026年聚焦全省交通运输行业网络、机房、网络安全及业务系统稳定运行，落实云南省公路路政管理总队（云南省综合交通发展中心）工作部署，核心绩效目标如下：\n1.网络链路及通信保障：完成链路租用采购，保障交通行业网络可用率≥99%；确保应急通信设备正常运转，支撑业务连续性。\n2.网络安全合规保障：完成10个三级信息系统的等保测评及密码测评，确保系统安全合规达标。\n3.应急与会议保障：突发应急事件及时响应；保障厅视频会议系统稳定运行。\n4.安全监测与演练：完成网络安全日常监测及重要节点值班值守，开展至少1次实战演练。\n5.12328热线保障：保障热线硬件设备正常运转、电话畅通可接；信息咨询答复率、限时办结率、答复满意率均≥90%。\n6.业务系统运维：完成信用、统计、治超、道路运输、政务办公、智能文件、电子证照、业财、交调、以奖代补等系统日常巡检与运维；按要求推进系统整合提升及功能优化，保障系统正常使用。\n7.网站及新媒体保障：保障省交通发展中心网站正常运转，网页可用。\n8.机房运维保障：开展行业机房日常巡检，保障机房设备及环境稳定。\n9.云南省公路工程造价管理信息化平台：做好造价文件审查、评审、管理建设等工作；保障平台系统功能正常使用、运维正常运转。\n10.云南省收费公路联网收费运营在线监管平台系统调试、维护及时率达到 100%。","产出指标","时效指标","业财系统故障响应及时率",">=","95","%","定量指标","反映维护部门对业财系统故障响应及时率。"]
["政务信息化运维服务项目补助资金","依据交通运输部“十四五”规划及云南省“数字经济”建设要求，围绕“1157”总体架构，2026年聚焦全省交通运输行业网络、机房、网络安全及业务系统稳定运行，落实云南省公路路政管理总队（云南省综合交通发展中心）工作部署，核心绩效目标如下：\n1.网络链路及通信保障：完成链路租用采购，保障交通行业网络可用率≥99%；确保应急通信设备正常运转，支撑业务连续性。\n2.网络安全合规保障：完成10个三级信息系统的等保测评及密码测评，确保系统安全合规达标。\n3.应急与会议保障：突发应急事件及时响应；保障厅视频会议系统稳定运行。\n4.安全监测与演练：完成网络安全日常监测及重要节点值班值守，开展至少1次实战演练。\n5.12328热线保障：保障热线硬件设备正常运转、电话畅通可接；信息咨询答复率、限时办结率、答复满意率均≥90%。\n6.业务系统运维：完成信用、统计、治超、道路运输、政务办公、智能文件、电子证照、业财、交调、以奖代补等系统日常巡检与运维；按要求推进系统整合提升及功能优化，保障系统正常使用。\n7.网站及新媒体保障：保障省交通发展中心网站正常运转，网页可用。\n8.机房运维保障：开展行业机房日常巡检，保障机房设备及环境稳定。\n9.云南省公路工程造价管理信息化平台：做好造价文件审查、评审、管理建设等工作；保障平台系统功能正常使用、运维正常运转。\n10.云南省收费公路联网收费运营在线监管平台系统调试、维护及时率达到 100%。","效益指标","社会效益","12328热线信息咨询答复率",">=","90","%","定量指标","反映全省呼叫中心服务能力，体现12328热线能够正常为群众和行业从业人员提供信息咨询服务，有效解决群众问题，通过12328热线充分体现交通运输行业主管单位“听民声、畅民意、汇民智”，让群众和从业人员满意，产生良好社会效益。"]
["政务信息化运维服务项目补助资金","依据交通运输部“十四五”规划及云南省“数字经济”建设要求，围绕“1157”总体架构，2026年聚焦全省交通运输行业网络、机房、网络安全及业务系统稳定运行，落实云南省公路路政管理总队（云南省综合交通发展中心）工作部署，核心绩效目标如下：\n1.网络链路及通信保障：完成链路租用采购，保障交通行业网络可用率≥99%；确保应急通信设备正常运转，支撑业务连续性。\n2.网络安全合规保障：完成10个三级信息系统的等保测评及密码测评，确保系统安全合规达标。\n3.应急与会议保障：突发应急事件及时响应；保障厅视频会议系统稳定运行。\n4.安全监测与演练：完成网络安全日常监测及重要节点值班值守，开展至少1次实战演练。\n5.12328热线保障：保障热线硬件设备正常运转、电话畅通可接；信息咨询答复率、限时办结率、答复满意率均≥90%。\n6.业务系统运维：完成信用、统计、治超、道路运输、政务办公、智能文件、电子证照、业财、交调、以奖代补等系统日常巡检与运维；按要求推进系统整合提升及功能优化，保障系统正常使用。\n7.网站及新媒体保障：保障省交通发展中心网站正常运转，网页可用。\n8.机房运维保障：开展行业机房日常巡检，保障机房设备及环境稳定。\n9.云南省公路工程造价管理信息化平台：做好造价文件审查、评审、管理建设等工作；保障平台系统功能正常使用、运维正常运转。\n10.云南省收费公路联网收费运营在线监管平台系统调试、维护及时率达到 100%。","效益指标","社会效益","信用交通云南网站信用信息公示量",">=","150000","条","定量指标","考核全省信用交通云南网站信用信息公示量，体现网站能正常公示相关信用信息，为群众和行业从业人员提供服务。"]
["政务信息化运维服务项目补助资金","依据交通运输部“十四五”规划及云南省“数字经济”建设要求，围绕“1157”总体架构，2026年聚焦全省交通运输行业网络、机房、网络安全及业务系统稳定运行，落实云南省公路路政管理总队（云南省综合交通发展中心）工作部署，核心绩效目标如下：\n1.网络链路及通信保障：完成链路租用采购，保障交通行业网络可用率≥99%；确保应急通信设备正常运转，支撑业务连续性。\n2.网络安全合规保障：完成10个三级信息系统的等保测评及密码测评，确保系统安全合规达标。\n3.应急与会议保障：突发应急事件及时响应；保障厅视频会议系统稳定运行。\n4.安全监测与演练：完成网络安全日常监测及重要节点值班值守，开展至少1次实战演练。\n5.12328热线保障：保障热线硬件设备正常运转、电话畅通可接；信息咨询答复率、限时办结率、答复满意率均≥90%。\n6.业务系统运维：完成信用、统计、治超、道路运输、政务办公、智能文件、电子证照、业财、交调、以奖代补等系统日常巡检与运维；按要求推进系统整合提升及功能优化，保障系统正常使用。\n7.网站及新媒体保障：保障省交通发展中心网站正常运转，网页可用。\n8.机房运维保障：开展行业机房日常巡检，保障机房设备及环境稳定。\n9.云南省公路工程造价管理信息化平台：做好造价文件审查、评审、管理建设等工作；保障平台系统功能正常使用、运维正常运转。\n10.云南省收费公路联网收费运营在线监管平台系统调试、维护及时率达到 100%。","效益指标","可持续影响","造价信息化平台系统正常使用年限",">=","1.00","年","定量指标","造价信息化平台系统正常使用年限。"]
["政务信息化运维服务项目补助资金","依据交通运输部“十四五”规划及云南省“数字经济”建设要求，围绕“1157”总体架构，2026年聚焦全省交通运输行业网络、机房、网络安全及业务系统稳定运行，落实云南省公路路政管理总队（云南省综合交通发展中心）工作部署，核心绩效目标如下：\n1.网络链路及通信保障：完成链路租用采购，保障交通行业网络可用率≥99%；确保应急通信设备正常运转，支撑业务连续性。\n2.网络安全合规保障：完成10个三级信息系统的等保测评及密码测评，确保系统安全合规达标。\n3.应急与会议保障：突发应急事件及时响应；保障厅视频会议系统稳定运行。\n4.安全监测与演练：完成网络安全日常监测及重要节点值班值守，开展至少1次实战演练。\n5.12328热线保障：保障热线硬件设备正常运转、电话畅通可接；信息咨询答复率、限时办结率、答复满意率均≥90%。\n6.业务系统运维：完成信用、统计、治超、道路运输、政务办公、智能文件、电子证照、业财、交调、以奖代补等系统日常巡检与运维；按要求推进系统整合提升及功能优化，保障系统正常使用。\n7.网站及新媒体保障：保障省交通发展中心网站正常运转，网页可用。\n8.机房运维保障：开展行业机房日常巡检，保障机房设备及环境稳定。\n9.云南省公路工程造价管理信息化平台：做好造价文件审查、评审、管理建设等工作；保障平台系统功能正常使用、运维正常运转。\n10.云南省收费公路联网收费运营在线监管平台系统调试、维护及时率达到 100%。","满意度指标","服务对象满意度","交调系统使用受益对象满意度",">=","95","%","定量指标","公路交通观测系统使用受益对象满意的数量占受益对象总数之比，反映运维服务工作满意度。"]
["政务信息化运维服务项目补助资金","依据交通运输部“十四五”规划及云南省“数字经济”建设要求，围绕“1157”总体架构，2026年聚焦全省交通运输行业网络、机房、网络安全及业务系统稳定运行，落实云南省公路路政管理总队（云南省综合交通发展中心）工作部署，核心绩效目标如下：\n1.网络链路及通信保障：完成链路租用采购，保障交通行业网络可用率≥99%；确保应急通信设备正常运转，支撑业务连续性。\n2.网络安全合规保障：完成10个三级信息系统的等保测评及密码测评，确保系统安全合规达标。\n3.应急与会议保障：突发应急事件及时响应；保障厅视频会议系统稳定运行。\n4.安全监测与演练：完成网络安全日常监测及重要节点值班值守，开展至少1次实战演练。\n5.12328热线保障：保障热线硬件设备正常运转、电话畅通可接；信息咨询答复率、限时办结率、答复满意率均≥90%。\n6.业务系统运维：完成信用、统计、治超、道路运输、政务办公、智能文件、电子证照、业财、交调、以奖代补等系统日常巡检与运维；按要求推进系统整合提升及功能优化，保障系统正常使用。\n7.网站及新媒体保障：保障省交通发展中心网站正常运转，网页可用。\n8.机房运维保障：开展行业机房日常巡检，保障机房设备及环境稳定。\n9.云南省公路工程造价管理信息化平台：做好造价文件审查、评审、管理建设等工作；保障平台系统功能正常使用、运维正常运转。\n10.云南省收费公路联网收费运营在线监管平台系统调试、维护及时率达到 100%。","满意度指标","服务对象满意度","执法系统使用单位满意度",">=","90","%","定量指标","考核服务全省综合执法系统使用单位质量情况。"]
["政务信息化运维服务项目补助资金","依据交通运输部“十四五”规划及云南省“数字经济”建设要求，围绕“1157”总体架构，2026年聚焦全省交通运输行业网络、机房、网络安全及业务系统稳定运行，落实云南省公路路政管理总队（云南省综合交通发展中心）工作部署，核心绩效目标如下：\n1.网络链路及通信保障：完成链路租用采购，保障交通行业网络可用率≥99%；确保应急通信设备正常运转，支撑业务连续性。\n2.网络安全合规保障：完成10个三级信息系统的等保测评及密码测评，确保系统安全合规达标。\n3.应急与会议保障：突发应急事件及时响应；保障厅视频会议系统稳定运行。\n4.安全监测与演练：完成网络安全日常监测及重要节点值班值守，开展至少1次实战演练。\n5.12328热线保障：保障热线硬件设备正常运转、电话畅通可接；信息咨询答复率、限时办结率、答复满意率均≥90%。\n6.业务系统运维：完成信用、统计、治超、道路运输、政务办公、智能文件、电子证照、业财、交调、以奖代补等系统日常巡检与运维；按要求推进系统整合提升及功能优化，保障系统正常使用。\n7.网站及新媒体保障：保障省交通发展中心网站正常运转，网页可用。\n8.机房运维保障：开展行业机房日常巡检，保障机房设备及环境稳定。\n9.云南省公路工程造价管理信息化平台：做好造价文件审查、评审、管理建设等工作；保障平台系统功能正常使用、运维正常运转。\n10.云南省收费公路联网收费运营在线监管平台系统调试、维护及时率达到 100%。","满意度指标","服务对象满意度","12328热线答复满意度",">=","90","%","定量指标","12328热线即时答复满意率=12328热线答复满意数/参与评价总数*100%。社会公众对12328热线服务满意度，考核全省呼叫中心办理质量。"]
["政务信息化运维服务项目补助资金","依据交通运输部“十四五”规划及云南省“数字经济”建设要求，围绕“1157”总体架构，2026年聚焦全省交通运输行业网络、机房、网络安全及业务系统稳定运行，落实云南省公路路政管理总队（云南省综合交通发展中心）工作部署，核心绩效目标如下：\n1.网络链路及通信保障：完成链路租用采购，保障交通行业网络可用率≥99%；确保应急通信设备正常运转，支撑业务连续性。\n2.网络安全合规保障：完成10个三级信息系统的等保测评及密码测评，确保系统安全合规达标。\n3.应急与会议保障：突发应急事件及时响应；保障厅视频会议系统稳定运行。\n4.安全监测与演练：完成网络安全日常监测及重要节点值班值守，开展至少1次实战演练。\n5.12328热线保障：保障热线硬件设备正常运转、电话畅通可接；信息咨询答复率、限时办结率、答复满意率均≥90%。\n6.业务系统运维：完成信用、统计、治超、道路运输、政务办公、智能文件、电子证照、业财、交调、以奖代补等系统日常巡检与运维；按要求推进系统整合提升及功能优化，保障系统正常使用。\n7.网站及新媒体保障：保障省交通发展中心网站正常运转，网页可用。\n8.机房运维保障：开展行业机房日常巡检，保障机房设备及环境稳定。\n9.云南省公路工程造价管理信息化平台：做好造价文件审查、评审、管理建设等工作；保障平台系统功能正常使用、运维正常运转。\n10.云南省收费公路联网收费运营在线监管平台系统调试、维护及时率达到 100%。","满意度指标","服务对象满意度","造价信息化平台服务对象满意度",">=","90","%","定量指标","平台服务对象满意度。"]
["政务信息化运维服务项目补助资金","依据交通运输部“十四五”规划及云南省“数字经济”建设要求，围绕“1157”总体架构，2026年聚焦全省交通运输行业网络、机房、网络安全及业务系统稳定运行，落实云南省公路路政管理总队（云南省综合交通发展中心）工作部署，核心绩效目标如下：\n1.网络链路及通信保障：完成链路租用采购，保障交通行业网络可用率≥99%；确保应急通信设备正常运转，支撑业务连续性。\n2.网络安全合规保障：完成10个三级信息系统的等保测评及密码测评，确保系统安全合规达标。\n3.应急与会议保障：突发应急事件及时响应；保障厅视频会议系统稳定运行。\n4.安全监测与演练：完成网络安全日常监测及重要节点值班值守，开展至少1次实战演练。\n5.12328热线保障：保障热线硬件设备正常运转、电话畅通可接；信息咨询答复率、限时办结率、答复满意率均≥90%。\n6.业务系统运维：完成信用、统计、治超、道路运输、政务办公、智能文件、电子证照、业财、交调、以奖代补等系统日常巡检与运维；按要求推进系统整合提升及功能优化，保障系统正常使用。\n7.网站及新媒体保障：保障省交通发展中心网站正常运转，网页可用。\n8.机房运维保障：开展行业机房日常巡检，保障机房设备及环境稳定。\n9.云南省公路工程造价管理信息化平台：做好造价文件审查、评审、管理建设等工作；保障平台系统功能正常使用、运维正常运转。\n10.云南省收费公路联网收费运营在线监管平台系统调试、维护及时率达到 100%。","满意度指标","服务对象满意度","行政审批系统用户使用满意度",">=","90","%","定量指标","业务部门用户使用满意度=业务部门用户使用满意度数/评价总数*100%。反映业务部门用户使用满意度。"]
["政务信息化运维服务项目补助资金","依据交通运输部“十四五”规划及云南省“数字经济”建设要求，围绕“1157”总体架构，2026年聚焦全省交通运输行业网络、机房、网络安全及业务系统稳定运行，落实云南省公路路政管理总队（云南省综合交通发展中心）工作部署，核心绩效目标如下：\n1.网络链路及通信保障：完成链路租用采购，保障交通行业网络可用率≥99%；确保应急通信设备正常运转，支撑业务连续性。\n2.网络安全合规保障：完成10个三级信息系统的等保测评及密码测评，确保系统安全合规达标。\n3.应急与会议保障：突发应急事件及时响应；保障厅视频会议系统稳定运行。\n4.安全监测与演练：完成网络安全日常监测及重要节点值班值守，开展至少1次实战演练。\n5.12328热线保障：保障热线硬件设备正常运转、电话畅通可接；信息咨询答复率、限时办结率、答复满意率均≥90%。\n6.业务系统运维：完成信用、统计、治超、道路运输、政务办公、智能文件、电子证照、业财、交调、以奖代补等系统日常巡检与运维；按要求推进系统整合提升及功能优化，保障系统正常使用。\n7.网站及新媒体保障：保障省交通发展中心网站正常运转，网页可用。\n8.机房运维保障：开展行业机房日常巡检，保障机房设备及环境稳定。\n9.云南省公路工程造价管理信息化平台：做好造价文件审查、评审、管理建设等工作；保障平台系统功能正常使用、运维正常运转。\n10.云南省收费公路联网收费运营在线监管平台系统调试、维护及时率达到 100%。","满意度指标","服务对象满意度","统计系统使用单位满意度",">=","90","%","定量指标","考核服务全省统计系统使用单位质量情况。"]
["政务信息化运维服务项目补助资金","依据交通运输部“十四五”规划及云南省“数字经济”建设要求，围绕“1157”总体架构，2026年聚焦全省交通运输行业网络、机房、网络安全及业务系统稳定运行，落实云南省公路路政管理总队（云南省综合交通发展中心）工作部署，核心绩效目标如下：\n1.网络链路及通信保障：完成链路租用采购，保障交通行业网络可用率≥99%；确保应急通信设备正常运转，支撑业务连续性。\n2.网络安全合规保障：完成10个三级信息系统的等保测评及密码测评，确保系统安全合规达标。\n3.应急与会议保障：突发应急事件及时响应；保障厅视频会议系统稳定运行。\n4.安全监测与演练：完成网络安全日常监测及重要节点值班值守，开展至少1次实战演练。\n5.12328热线保障：保障热线硬件设备正常运转、电话畅通可接；信息咨询答复率、限时办结率、答复满意率均≥90%。\n6.业务系统运维：完成信用、统计、治超、道路运输、政务办公、智能文件、电子证照、业财、交调、以奖代补等系统日常巡检与运维；按要求推进系统整合提升及功能优化，保障系统正常使用。\n7.网站及新媒体保障：保障省交通发展中心网站正常运转，网页可用。\n8.机房运维保障：开展行业机房日常巡检，保障机房设备及环境稳定。\n9.云南省公路工程造价管理信息化平台：做好造价文件审查、评审、管理建设等工作；保障平台系统功能正常使用、运维正常运转。\n10.云南省收费公路联网收费运营在线监管平台系统调试、维护及时率达到 100%。","满意度指标","服务对象满意度","信用系统使用单位满意度",">=","90","%","定量指标","考核服务全省信用系统使用单位质量情况。"]
["政务信息化建设项目补助资金","按照《交通运输部办公厅关于北京市交通委员会等单位开展国家综合交通运输信息平台部省联动试点工作的意见》（交办科技函〔2025〕l161号）和《国家综合交通运输信息平台部省联动建设规范》要求，建设“统筹集约、数据驱动、业务协同”的省级综合交通运输信息平台，构建覆盖视频联网、应急调度、监测预警、综合执法、政务服务五大领域的统一应用体系，实现跨部门、跨层级、跨区域的业务高效协同。","产出指标","数量指标","开展综合交通信息平台建设","=","1.00","个","定量指标","反映综合交通信息平台建设情况。"]
["政务信息化建设项目补助资金","按照《交通运输部办公厅关于北京市交通委员会等单位开展国家综合交通运输信息平台部省联动试点工作的意见》（交办科技函〔2025〕l161号）和《国家综合交通运输信息平台部省联动建设规范》要求，建设“统筹集约、数据驱动、业务协同”的省级综合交通运输信息平台，构建覆盖视频联网、应急调度、监测预警、综合执法、政务服务五大领域的统一应用体系，实现跨部门、跨层级、跨区域的业务高效协同。","产出指标","质量指标","系统并发用户承载能力",">=","100","人","定量指标","反映系统并发用户承载能力。"]
["政务信息化建设项目补助资金","按照《交通运输部办公厅关于北京市交通委员会等单位开展国家综合交通运输信息平台部省联动试点工作的意见》（交办科技函〔2025〕l161号）和《国家综合交通运输信息平台部省联动建设规范》要求，建设“统筹集约、数据驱动、业务协同”的省级综合交通运输信息平台，构建覆盖视频联网、应急调度、监测预警、综合执法、政务服务五大领域的统一应用体系，实现跨部门、跨层级、跨区域的业务高效协同。","效益指标","社会效益","道路运输电子证照归集率",">=","90","%","定量指标","反映云南省道路运输电子证照数据归集到交通运输部道路运输电子证照平台情况。"]
["政务信息化建设项目补助资金","按照《交通运输部办公厅关于北京市交通委员会等单位开展国家综合交通运输信息平台部省联动试点工作的意见》（交办科技函〔2025〕l161号）和《国家综合交通运输信息平台部省联动建设规范》要求，建设“统筹集约、数据驱动、业务协同”的省级综合交通运输信息平台，构建覆盖视频联网、应急调度、监测预警、综合执法、政务服务五大领域的统一应用体系，实现跨部门、跨层级、跨区域的业务高效协同。","效益指标","可持续影响","系统可用性",">=","99","%","定量指标","评判系统可用性，系统是否达到可使用。"]
["政务信息化建设项目补助资金","按照《交通运输部办公厅关于北京市交通委员会等单位开展国家综合交通运输信息平台部省联动试点工作的意见》（交办科技函〔2025〕l161号）和《国家综合交通运输信息平台部省联动建设规范》要求，建设“统筹集约、数据驱动、业务协同”的省级综合交通运输信息平台，构建覆盖视频联网、应急调度、监测预警、综合执法、政务服务五大领域的统一应用体系，实现跨部门、跨层级、跨区域的业务高效协同。","满意度指标","服务对象满意度","综合交通信息平台系统满意度",">=","90","%","定量指标","反映系统使用单位的满意程度。"]
["政务信息化建设项目补助资金","按照《交通运输部办公厅关于北京市交通委员会等单位开展国家综合交通运输信息平台部省联动试点工作的意见》（交办科技函〔2025〕l161号）和《国家综合交通运输信息平台部省联动建设规范》要求，建设“统筹集约、数据驱动、业务协同”的省级综合交通运输信息平台，构建覆盖视频联网、应急调度、监测预警、综合执法、政务服务五大领域的统一应用体系，实现跨部门、跨层级、跨区域的业务高效协同。","成本指标","经济成本指标","综合交通信息平台项目投资节约率","<=","25","%","定量指标","反映综合交通信息平台项目投资节约情况。"]
["交通运输行业标准（定额）制修订与工程造价管理专项经费","1.行业标准（定额）制修订\n根据《公路工程建设标准管理办法》；《公路工程造价管理暂行办法》等规定以及工作职责。目标计划完成2项交通运输行业预算定额编制和1项交通运输工程材料及设备信息价收集，其中每项交通运输行业预算定额完成7个定额子目的编制工作。\n2.交通运输工程造价协助审查\n开展交通工程项目造价文件设计图工程数量核查及现场调查工作，为行业主管部门履行审批职责，提供基础保障，提高服务质量，严格工作纪律，按时按质完成审查、调查、监督、资料收集等工作，确保项目有序推进。目标如下：（1）根据关于印发《交通运输工程造价评审工作机制》的通知和《公路工程造价评审现场调查工作制度》，开展造价文件审查（包括但不限于造价文件评审核及现场调查、收集相关造价信息数据等），预期出具造价技术咨询审查报告14个，出具率达到100%。（2）造价文件协助审查，审查后审（核）减率，平均审查核减率大于或等于0.5%。（3）造价文件协助审查服务满意度，从中心投诉及厅网站受理情况进行评价，服务对象满意率大于或等于90%。\n","产出指标","数量指标","审查项目数",">=","14","个","定量指标","按期完成计划的14个（包括但不限于造价文件审查及现场调查、收集相关造价信息数据、造价监督检查及材料价格信息收集）。"]
["交通运输行业标准（定额）制修订与工程造价管理专项经费","1.行业标准（定额）制修订\n根据《公路工程建设标准管理办法》；《公路工程造价管理暂行办法》等规定以及工作职责。目标计划完成2项交通运输行业预算定额编制和1项交通运输工程材料及设备信息价收集，其中每项交通运输行业预算定额完成7个定额子目的编制工作。\n2.交通运输工程造价协助审查\n开展交通工程项目造价文件设计图工程数量核查及现场调查工作，为行业主管部门履行审批职责，提供基础保障，提高服务质量，严格工作纪律，按时按质完成审查、调查、监督、资料收集等工作，确保项目有序推进。目标如下：（1）根据关于印发《交通运输工程造价评审工作机制》的通知和《公路工程造价评审现场调查工作制度》，开展造价文件审查（包括但不限于造价文件评审核及现场调查、收集相关造价信息数据等），预期出具造价技术咨询审查报告14个，出具率达到100%。（2）造价文件协助审查，审查后审（核）减率，平均审查核减率大于或等于0.5%。（3）造价文件协助审查服务满意度，从中心投诉及厅网站受理情况进行评价，服务对象满意率大于或等于90%。\n","产出指标","质量指标","定额成果验收合格率",">=","90","%","定量指标","反映定额成果验收合格情况。"]
["交通运输行业标准（定额）制修订与工程造价管理专项经费","1.行业标准（定额）制修订\n根据《公路工程建设标准管理办法》；《公路工程造价管理暂行办法》等规定以及工作职责。目标计划完成2项交通运输行业预算定额编制和1项交通运输工程材料及设备信息价收集，其中每项交通运输行业预算定额完成7个定额子目的编制工作。\n2.交通运输工程造价协助审查\n开展交通工程项目造价文件设计图工程数量核查及现场调查工作，为行业主管部门履行审批职责，提供基础保障，提高服务质量，严格工作纪律，按时按质完成审查、调查、监督、资料收集等工作，确保项目有序推进。目标如下：（1）根据关于印发《交通运输工程造价评审工作机制》的通知和《公路工程造价评审现场调查工作制度》，开展造价文件审查（包括但不限于造价文件评审核及现场调查、收集相关造价信息数据等），预期出具造价技术咨询审查报告14个，出具率达到100%。（2）造价文件协助审查，审查后审（核）减率，平均审查核减率大于或等于0.5%。（3）造价文件协助审查服务满意度，从中心投诉及厅网站受理情况进行评价，服务对象满意率大于或等于90%。\n","效益指标","经济效益","交通运输工程造价审减率",">=","0.5","%","定量指标","效益指标，送审总投资与审查后总投资对比情况，完成对造价文件的评审后,每个项目审查后总投资与送审总投资比较在考核范围内。"]
["交通运输行业标准（定额）制修订与工程造价管理专项经费","1.行业标准（定额）制修订\n根据《公路工程建设标准管理办法》；《公路工程造价管理暂行办法》等规定以及工作职责。目标计划完成2项交通运输行业预算定额编制和1项交通运输工程材料及设备信息价收集，其中每项交通运输行业预算定额完成7个定额子目的编制工作。\n2.交通运输工程造价协助审查\n开展交通工程项目造价文件设计图工程数量核查及现场调查工作，为行业主管部门履行审批职责，提供基础保障，提高服务质量，严格工作纪律，按时按质完成审查、调查、监督、资料收集等工作，确保项目有序推进。目标如下：（1）根据关于印发《交通运输工程造价评审工作机制》的通知和《公路工程造价评审现场调查工作制度》，开展造价文件审查（包括但不限于造价文件评审核及现场调查、收集相关造价信息数据等），预期出具造价技术咨询审查报告14个，出具率达到100%。（2）造价文件协助审查，审查后审（核）减率，平均审查核减率大于或等于0.5%。（3）造价文件协助审查服务满意度，从中心投诉及厅网站受理情况进行评价，服务对象满意率大于或等于90%。\n","效益指标","可持续影响","定额成果可使用期限",">=","5","年","定量指标","供标准修订使用，标准修订5年一个周期。满5年100分，少使用一年扣5分。"]
["交通运输行业标准（定额）制修订与工程造价管理专项经费","1.行业标准（定额）制修订\n根据《公路工程建设标准管理办法》；《公路工程造价管理暂行办法》等规定以及工作职责。目标计划完成2项交通运输行业预算定额编制和1项交通运输工程材料及设备信息价收集，其中每项交通运输行业预算定额完成7个定额子目的编制工作。\n2.交通运输工程造价协助审查\n开展交通工程项目造价文件设计图工程数量核查及现场调查工作，为行业主管部门履行审批职责，提供基础保障，提高服务质量，严格工作纪律，按时按质完成审查、调查、监督、资料收集等工作，确保项目有序推进。目标如下：（1）根据关于印发《交通运输工程造价评审工作机制》的通知和《公路工程造价评审现场调查工作制度》，开展造价文件审查（包括但不限于造价文件评审核及现场调查、收集相关造价信息数据等），预期出具造价技术咨询审查报告14个，出具率达到100%。（2）造价文件协助审查，审查后审（核）减率，平均审查核减率大于或等于0.5%。（3）造价文件协助审查服务满意度，从中心投诉及厅网站受理情况进行评价，服务对象满意率大于或等于90%。\n","满意度指标","服务对象满意度","定额公众满意度",">=","90","%","定量指标","根据服务对象投诉情况设定或问卷调查。（原则上无投诉视为满意）。"]
["交通运输行业标准（定额）制修订与工程造价管理专项经费","1.行业标准（定额）制修订\n根据《公路工程建设标准管理办法》；《公路工程造价管理暂行办法》等规定以及工作职责。目标计划完成2项交通运输行业预算定额编制和1项交通运输工程材料及设备信息价收集，其中每项交通运输行业预算定额完成7个定额子目的编制工作。\n2.交通运输工程造价协助审查\n开展交通工程项目造价文件设计图工程数量核查及现场调查工作，为行业主管部门履行审批职责，提供基础保障，提高服务质量，严格工作纪律，按时按质完成审查、调查、监督、资料收集等工作，确保项目有序推进。目标如下：（1）根据关于印发《交通运输工程造价评审工作机制》的通知和《公路工程造价评审现场调查工作制度》，开展造价文件审查（包括但不限于造价文件评审核及现场调查、收集相关造价信息数据等），预期出具造价技术咨询审查报告14个，出具率达到100%。（2）造价文件协助审查，审查后审（核）减率，平均审查核减率大于或等于0.5%。（3）造价文件协助审查服务满意度，从中心投诉及厅网站受理情况进行评价，服务对象满意率大于或等于90%。\n","满意度指标","服务对象满意度","造价审查服务对象满意度",">=","90","%","定量指标","满意度指标，设定审查成果投诉，从审查周期、业务水平、工作质量、工作态度、廉洁自律、服务态度方面进行评价，确保工程投资与项目建设实际对应，达到造价文件评审结果无投诉。"]
["省公路路政管理总队2025年省科技进步二等奖奖金经费","按时完成10万元奖金分配与使用。","产出指标","时效指标","资金支付比例",">=","90","%","定量指标","2025年科技进步奖二等奖资金使用比例。"]
["省公路路政管理总队2025年省科技进步二等奖奖金经费","按时完成10万元奖金分配与使用。","效益指标","经济效益","奖金使用金额","=","10","万元","定量指标","10万元奖金全部使用情况。"]
["省公路路政管理总队2025年省科技进步二等奖奖金经费","按时完成10万元奖金分配与使用。","满意度指标","服务对象满意度","资金支付满意度",">=","90","%","定量指标","参与单位对资金发放的满意度。"]
["交通运输工程项目监管和路网监测专项经费","运用财政资金，按照省路政总队（省交通发展中心）工作部署，履行好中心对全省交通运输行业的行政辅助和社会公众的公益服务职责职能，按目标要求完成年度各项重点工作任务，具体实现以下工作目标：\n1.开展交通指挥大厅运行保障工作，保障交通指挥大厅安全运行，各项监测应急业务正常开展。2.开展公路建设竣工档案质量审查及评价工作，对在建或已通车的6个公路建设项目档案编制情况进行质量审查及评价,完成率达100%。3.开展公路网运行监测评价体系建设和业务应用，路网运行监测研究及业务应用工作，完善云南省路网运行监测指标（指数）体系，开展指标（指数）的业务应用，优化路网运行监测周期性、重大节假日报告。4.开展交通气象专业化服务保障工作，提升公路气象灾害防灾抗灾能力，为大众出行服务提供气象预报预警信息支持，为行业主管机构和上级管理机构提供行业管理的数据依据。5.开展日常交通运输数据的监测分析，形成日报、月报；每年度编报交通运输行业《经济运行分析季度报告》。6.中心运行保障经费项目主要是保障省综合交通发展中心办公区及物业的环境卫生、公共秩序、日常运转、安全维护。7.开展数字交通强国试点任务评估，形成一份评估报告，做好全年机房用电保障、信息系统通知发送服务保障以及互联网地图服务保障。8.中心预算项目和年终财务决算完成后，开展3个项目专项审计和1个预算执行及财务收支审计工作。9.完成省厅安排开展的全省公路、铁路、水路、民航发展研究，全省综合交通运输相关辅助性、事务性、技术服务工作。10.交通运输工程项目监管与路网监测现场踏勘工作。","产出指标","数量指标","交通运输数据监测分析日报数量",">=","300","次","定量指标","以完成交通运输数据监测分析日报的数量考核。"]
["交通运输工程项目监管和路网监测专项经费","运用财政资金，按照省路政总队（省交通发展中心）工作部署，履行好中心对全省交通运输行业的行政辅助和社会公众的公益服务职责职能，按目标要求完成年度各项重点工作任务，具体实现以下工作目标：\n1.开展交通指挥大厅运行保障工作，保障交通指挥大厅安全运行，各项监测应急业务正常开展。2.开展公路建设竣工档案质量审查及评价工作，对在建或已通车的6个公路建设项目档案编制情况进行质量审查及评价,完成率达100%。3.开展公路网运行监测评价体系建设和业务应用，路网运行监测研究及业务应用工作，完善云南省路网运行监测指标（指数）体系，开展指标（指数）的业务应用，优化路网运行监测周期性、重大节假日报告。4.开展交通气象专业化服务保障工作，提升公路气象灾害防灾抗灾能力，为大众出行服务提供气象预报预警信息支持，为行业主管机构和上级管理机构提供行业管理的数据依据。5.开展日常交通运输数据的监测分析，形成日报、月报；每年度编报交通运输行业《经济运行分析季度报告》。6.中心运行保障经费项目主要是保障省综合交通发展中心办公区及物业的环境卫生、公共秩序、日常运转、安全维护。7.开展数字交通强国试点任务评估，形成一份评估报告，做好全年机房用电保障、信息系统通知发送服务保障以及互联网地图服务保障。8.中心预算项目和年终财务决算完成后，开展3个项目专项审计和1个预算执行及财务收支审计工作。9.完成省厅安排开展的全省公路、铁路、水路、民航发展研究，全省综合交通运输相关辅助性、事务性、技术服务工作。10.交通运输工程项目监管与路网监测现场踏勘工作。","产出指标","数量指标","经济运行分析季度报告数量",">=","3","次","定量指标","以完成季度经济运行分析报告的数量考核。"]
["交通运输工程项目监管和路网监测专项经费","运用财政资金，按照省路政总队（省交通发展中心）工作部署，履行好中心对全省交通运输行业的行政辅助和社会公众的公益服务职责职能，按目标要求完成年度各项重点工作任务，具体实现以下工作目标：\n1.开展交通指挥大厅运行保障工作，保障交通指挥大厅安全运行，各项监测应急业务正常开展。2.开展公路建设竣工档案质量审查及评价工作，对在建或已通车的6个公路建设项目档案编制情况进行质量审查及评价,完成率达100%。3.开展公路网运行监测评价体系建设和业务应用，路网运行监测研究及业务应用工作，完善云南省路网运行监测指标（指数）体系，开展指标（指数）的业务应用，优化路网运行监测周期性、重大节假日报告。4.开展交通气象专业化服务保障工作，提升公路气象灾害防灾抗灾能力，为大众出行服务提供气象预报预警信息支持，为行业主管机构和上级管理机构提供行业管理的数据依据。5.开展日常交通运输数据的监测分析，形成日报、月报；每年度编报交通运输行业《经济运行分析季度报告》。6.中心运行保障经费项目主要是保障省综合交通发展中心办公区及物业的环境卫生、公共秩序、日常运转、安全维护。7.开展数字交通强国试点任务评估，形成一份评估报告，做好全年机房用电保障、信息系统通知发送服务保障以及互联网地图服务保障。8.中心预算项目和年终财务决算完成后，开展3个项目专项审计和1个预算执行及财务收支审计工作。9.完成省厅安排开展的全省公路、铁路、水路、民航发展研究，全省综合交通运输相关辅助性、事务性、技术服务工作。10.交通运输工程项目监管与路网监测现场踏勘工作。","产出指标","数量指标","政策及合同文件合法性审查次数",">=","50","次","定量指标","以2026年通过风险评估、合法性审查的合同文件数量进行考核。"]
["交通运输工程项目监管和路网监测专项经费","运用财政资金，按照省路政总队（省交通发展中心）工作部署，履行好中心对全省交通运输行业的行政辅助和社会公众的公益服务职责职能，按目标要求完成年度各项重点工作任务，具体实现以下工作目标：\n1.开展交通指挥大厅运行保障工作，保障交通指挥大厅安全运行，各项监测应急业务正常开展。2.开展公路建设竣工档案质量审查及评价工作，对在建或已通车的6个公路建设项目档案编制情况进行质量审查及评价,完成率达100%。3.开展公路网运行监测评价体系建设和业务应用，路网运行监测研究及业务应用工作，完善云南省路网运行监测指标（指数）体系，开展指标（指数）的业务应用，优化路网运行监测周期性、重大节假日报告。4.开展交通气象专业化服务保障工作，提升公路气象灾害防灾抗灾能力，为大众出行服务提供气象预报预警信息支持，为行业主管机构和上级管理机构提供行业管理的数据依据。5.开展日常交通运输数据的监测分析，形成日报、月报；每年度编报交通运输行业《经济运行分析季度报告》。6.中心运行保障经费项目主要是保障省综合交通发展中心办公区及物业的环境卫生、公共秩序、日常运转、安全维护。7.开展数字交通强国试点任务评估，形成一份评估报告，做好全年机房用电保障、信息系统通知发送服务保障以及互联网地图服务保障。8.中心预算项目和年终财务决算完成后，开展3个项目专项审计和1个预算执行及财务收支审计工作。9.完成省厅安排开展的全省公路、铁路、水路、民航发展研究，全省综合交通运输相关辅助性、事务性、技术服务工作。10.交通运输工程项目监管与路网监测现场踏勘工作。","产出指标","数量指标","编制档案质量审查及评价报告","=","6","个","定量指标","反映编制档案质量审查及评价报告的完成情况。"]
["交通运输工程项目监管和路网监测专项经费","运用财政资金，按照省路政总队（省交通发展中心）工作部署，履行好中心对全省交通运输行业的行政辅助和社会公众的公益服务职责职能，按目标要求完成年度各项重点工作任务，具体实现以下工作目标：\n1.开展交通指挥大厅运行保障工作，保障交通指挥大厅安全运行，各项监测应急业务正常开展。2.开展公路建设竣工档案质量审查及评价工作，对在建或已通车的6个公路建设项目档案编制情况进行质量审查及评价,完成率达100%。3.开展公路网运行监测评价体系建设和业务应用，路网运行监测研究及业务应用工作，完善云南省路网运行监测指标（指数）体系，开展指标（指数）的业务应用，优化路网运行监测周期性、重大节假日报告。4.开展交通气象专业化服务保障工作，提升公路气象灾害防灾抗灾能力，为大众出行服务提供气象预报预警信息支持，为行业主管机构和上级管理机构提供行业管理的数据依据。5.开展日常交通运输数据的监测分析，形成日报、月报；每年度编报交通运输行业《经济运行分析季度报告》。6.中心运行保障经费项目主要是保障省综合交通发展中心办公区及物业的环境卫生、公共秩序、日常运转、安全维护。7.开展数字交通强国试点任务评估，形成一份评估报告，做好全年机房用电保障、信息系统通知发送服务保障以及互联网地图服务保障。8.中心预算项目和年终财务决算完成后，开展3个项目专项审计和1个预算执行及财务收支审计工作。9.完成省厅安排开展的全省公路、铁路、水路、民航发展研究，全省综合交通运输相关辅助性、事务性、技术服务工作。10.交通运输工程项目监管与路网监测现场踏勘工作。","产出指标","数量指标","云南省公路网运行监测报告量",">=","20","份","定量指标","反映云南省路网运行监测及分析报告的完成情况。"]
["交通运输工程项目监管和路网监测专项经费","运用财政资金，按照省路政总队（省交通发展中心）工作部署，履行好中心对全省交通运输行业的行政辅助和社会公众的公益服务职责职能，按目标要求完成年度各项重点工作任务，具体实现以下工作目标：\n1.开展交通指挥大厅运行保障工作，保障交通指挥大厅安全运行，各项监测应急业务正常开展。2.开展公路建设竣工档案质量审查及评价工作，对在建或已通车的6个公路建设项目档案编制情况进行质量审查及评价,完成率达100%。3.开展公路网运行监测评价体系建设和业务应用，路网运行监测研究及业务应用工作，完善云南省路网运行监测指标（指数）体系，开展指标（指数）的业务应用，优化路网运行监测周期性、重大节假日报告。4.开展交通气象专业化服务保障工作，提升公路气象灾害防灾抗灾能力，为大众出行服务提供气象预报预警信息支持，为行业主管机构和上级管理机构提供行业管理的数据依据。5.开展日常交通运输数据的监测分析，形成日报、月报；每年度编报交通运输行业《经济运行分析季度报告》。6.中心运行保障经费项目主要是保障省综合交通发展中心办公区及物业的环境卫生、公共秩序、日常运转、安全维护。7.开展数字交通强国试点任务评估，形成一份评估报告，做好全年机房用电保障、信息系统通知发送服务保障以及互联网地图服务保障。8.中心预算项目和年终财务决算完成后，开展3个项目专项审计和1个预算执行及财务收支审计工作。9.完成省厅安排开展的全省公路、铁路、水路、民航发展研究，全省综合交通运输相关辅助性、事务性、技术服务工作。10.交通运输工程项目监管与路网监测现场踏勘工作。","产出指标","数量指标","新增云南省路网运行监测指标",">=","3","项","定量指标","反映新增云南省路网运行监测指标的完成情况。"]
["交通运输工程项目监管和路网监测专项经费","运用财政资金，按照省路政总队（省交通发展中心）工作部署，履行好中心对全省交通运输行业的行政辅助和社会公众的公益服务职责职能，按目标要求完成年度各项重点工作任务，具体实现以下工作目标：\n1.开展交通指挥大厅运行保障工作，保障交通指挥大厅安全运行，各项监测应急业务正常开展。2.开展公路建设竣工档案质量审查及评价工作，对在建或已通车的6个公路建设项目档案编制情况进行质量审查及评价,完成率达100%。3.开展公路网运行监测评价体系建设和业务应用，路网运行监测研究及业务应用工作，完善云南省路网运行监测指标（指数）体系，开展指标（指数）的业务应用，优化路网运行监测周期性、重大节假日报告。4.开展交通气象专业化服务保障工作，提升公路气象灾害防灾抗灾能力，为大众出行服务提供气象预报预警信息支持，为行业主管机构和上级管理机构提供行业管理的数据依据。5.开展日常交通运输数据的监测分析，形成日报、月报；每年度编报交通运输行业《经济运行分析季度报告》。6.中心运行保障经费项目主要是保障省综合交通发展中心办公区及物业的环境卫生、公共秩序、日常运转、安全维护。7.开展数字交通强国试点任务评估，形成一份评估报告，做好全年机房用电保障、信息系统通知发送服务保障以及互联网地图服务保障。8.中心预算项目和年终财务决算完成后，开展3个项目专项审计和1个预算执行及财务收支审计工作。9.完成省厅安排开展的全省公路、铁路、水路、民航发展研究，全省综合交通运输相关辅助性、事务性、技术服务工作。10.交通运输工程项目监管与路网监测现场踏勘工作。","产出指标","数量指标","研判预报等气象服务信息提供次数",">=","20","次","定量指标","反映研判预报等气象服务信息提供的情况，以实际完成的数量考核。"]
["交通运输工程项目监管和路网监测专项经费","运用财政资金，按照省路政总队（省交通发展中心）工作部署，履行好中心对全省交通运输行业的行政辅助和社会公众的公益服务职责职能，按目标要求完成年度各项重点工作任务，具体实现以下工作目标：\n1.开展交通指挥大厅运行保障工作，保障交通指挥大厅安全运行，各项监测应急业务正常开展。2.开展公路建设竣工档案质量审查及评价工作，对在建或已通车的6个公路建设项目档案编制情况进行质量审查及评价,完成率达100%。3.开展公路网运行监测评价体系建设和业务应用，路网运行监测研究及业务应用工作，完善云南省路网运行监测指标（指数）体系，开展指标（指数）的业务应用，优化路网运行监测周期性、重大节假日报告。4.开展交通气象专业化服务保障工作，提升公路气象灾害防灾抗灾能力，为大众出行服务提供气象预报预警信息支持，为行业主管机构和上级管理机构提供行业管理的数据依据。5.开展日常交通运输数据的监测分析，形成日报、月报；每年度编报交通运输行业《经济运行分析季度报告》。6.中心运行保障经费项目主要是保障省综合交通发展中心办公区及物业的环境卫生、公共秩序、日常运转、安全维护。7.开展数字交通强国试点任务评估，形成一份评估报告，做好全年机房用电保障、信息系统通知发送服务保障以及互联网地图服务保障。8.中心预算项目和年终财务决算完成后，开展3个项目专项审计和1个预算执行及财务收支审计工作。9.完成省厅安排开展的全省公路、铁路、水路、民航发展研究，全省综合交通运输相关辅助性、事务性、技术服务工作。10.交通运输工程项目监管与路网监测现场踏勘工作。","产出指标","数量指标","采集整理发布交通运输信息数量",">=","46","期","定量指标","每年度采集整理发布重要交通运输行业信息期数指标。"]
["交通运输工程项目监管和路网监测专项经费","运用财政资金，按照省路政总队（省交通发展中心）工作部署，履行好中心对全省交通运输行业的行政辅助和社会公众的公益服务职责职能，按目标要求完成年度各项重点工作任务，具体实现以下工作目标：\n1.开展交通指挥大厅运行保障工作，保障交通指挥大厅安全运行，各项监测应急业务正常开展。2.开展公路建设竣工档案质量审查及评价工作，对在建或已通车的6个公路建设项目档案编制情况进行质量审查及评价,完成率达100%。3.开展公路网运行监测评价体系建设和业务应用，路网运行监测研究及业务应用工作，完善云南省路网运行监测指标（指数）体系，开展指标（指数）的业务应用，优化路网运行监测周期性、重大节假日报告。4.开展交通气象专业化服务保障工作，提升公路气象灾害防灾抗灾能力，为大众出行服务提供气象预报预警信息支持，为行业主管机构和上级管理机构提供行业管理的数据依据。5.开展日常交通运输数据的监测分析，形成日报、月报；每年度编报交通运输行业《经济运行分析季度报告》。6.中心运行保障经费项目主要是保障省综合交通发展中心办公区及物业的环境卫生、公共秩序、日常运转、安全维护。7.开展数字交通强国试点任务评估，形成一份评估报告，做好全年机房用电保障、信息系统通知发送服务保障以及互联网地图服务保障。8.中心预算项目和年终财务决算完成后，开展3个项目专项审计和1个预算执行及财务收支审计工作。9.完成省厅安排开展的全省公路、铁路、水路、民航发展研究，全省综合交通运输相关辅助性、事务性、技术服务工作。10.交通运输工程项目监管与路网监测现场踏勘工作。","产出指标","数量指标","开展并完成地图服务接入","=","2","项","定量指标","反映地图服务顺利按照需求开展。"]
["交通运输工程项目监管和路网监测专项经费","运用财政资金，按照省路政总队（省交通发展中心）工作部署，履行好中心对全省交通运输行业的行政辅助和社会公众的公益服务职责职能，按目标要求完成年度各项重点工作任务，具体实现以下工作目标：\n1.开展交通指挥大厅运行保障工作，保障交通指挥大厅安全运行，各项监测应急业务正常开展。2.开展公路建设竣工档案质量审查及评价工作，对在建或已通车的6个公路建设项目档案编制情况进行质量审查及评价,完成率达100%。3.开展公路网运行监测评价体系建设和业务应用，路网运行监测研究及业务应用工作，完善云南省路网运行监测指标（指数）体系，开展指标（指数）的业务应用，优化路网运行监测周期性、重大节假日报告。4.开展交通气象专业化服务保障工作，提升公路气象灾害防灾抗灾能力，为大众出行服务提供气象预报预警信息支持，为行业主管机构和上级管理机构提供行业管理的数据依据。5.开展日常交通运输数据的监测分析，形成日报、月报；每年度编报交通运输行业《经济运行分析季度报告》。6.中心运行保障经费项目主要是保障省综合交通发展中心办公区及物业的环境卫生、公共秩序、日常运转、安全维护。7.开展数字交通强国试点任务评估，形成一份评估报告，做好全年机房用电保障、信息系统通知发送服务保障以及互联网地图服务保障。8.中心预算项目和年终财务决算完成后，开展3个项目专项审计和1个预算执行及财务收支审计工作。9.完成省厅安排开展的全省公路、铁路、水路、民航发展研究，全省综合交通运输相关辅助性、事务性、技术服务工作。10.交通运输工程项目监管与路网监测现场踏勘工作。","产出指标","数量指标","交通运输数据监测分析月报数量",">=","10","次","定量指标","以收集的交通运输监测分析月报是否按时上报进行考核。"]
["交通运输工程项目监管和路网监测专项经费","运用财政资金，按照省路政总队（省交通发展中心）工作部署，履行好中心对全省交通运输行业的行政辅助和社会公众的公益服务职责职能，按目标要求完成年度各项重点工作任务，具体实现以下工作目标：\n1.开展交通指挥大厅运行保障工作，保障交通指挥大厅安全运行，各项监测应急业务正常开展。2.开展公路建设竣工档案质量审查及评价工作，对在建或已通车的6个公路建设项目档案编制情况进行质量审查及评价,完成率达100%。3.开展公路网运行监测评价体系建设和业务应用，路网运行监测研究及业务应用工作，完善云南省路网运行监测指标（指数）体系，开展指标（指数）的业务应用，优化路网运行监测周期性、重大节假日报告。4.开展交通气象专业化服务保障工作，提升公路气象灾害防灾抗灾能力，为大众出行服务提供气象预报预警信息支持，为行业主管机构和上级管理机构提供行业管理的数据依据。5.开展日常交通运输数据的监测分析，形成日报、月报；每年度编报交通运输行业《经济运行分析季度报告》。6.中心运行保障经费项目主要是保障省综合交通发展中心办公区及物业的环境卫生、公共秩序、日常运转、安全维护。7.开展数字交通强国试点任务评估，形成一份评估报告，做好全年机房用电保障、信息系统通知发送服务保障以及互联网地图服务保障。8.中心预算项目和年终财务决算完成后，开展3个项目专项审计和1个预算执行及财务收支审计工作。9.完成省厅安排开展的全省公路、铁路、水路、民航发展研究，全省综合交通运输相关辅助性、事务性、技术服务工作。10.交通运输工程项目监管与路网监测现场踏勘工作。","产出指标","数量指标","交通强国自评估报告","=","1.00","份","定量指标","反映交通强国试点任务自评估报告提交情况。"]
["交通运输工程项目监管和路网监测专项经费","运用财政资金，按照省路政总队（省交通发展中心）工作部署，履行好中心对全省交通运输行业的行政辅助和社会公众的公益服务职责职能，按目标要求完成年度各项重点工作任务，具体实现以下工作目标：\n1.开展交通指挥大厅运行保障工作，保障交通指挥大厅安全运行，各项监测应急业务正常开展。2.开展公路建设竣工档案质量审查及评价工作，对在建或已通车的6个公路建设项目档案编制情况进行质量审查及评价,完成率达100%。3.开展公路网运行监测评价体系建设和业务应用，路网运行监测研究及业务应用工作，完善云南省路网运行监测指标（指数）体系，开展指标（指数）的业务应用，优化路网运行监测周期性、重大节假日报告。4.开展交通气象专业化服务保障工作，提升公路气象灾害防灾抗灾能力，为大众出行服务提供气象预报预警信息支持，为行业主管机构和上级管理机构提供行业管理的数据依据。5.开展日常交通运输数据的监测分析，形成日报、月报；每年度编报交通运输行业《经济运行分析季度报告》。6.中心运行保障经费项目主要是保障省综合交通发展中心办公区及物业的环境卫生、公共秩序、日常运转、安全维护。7.开展数字交通强国试点任务评估，形成一份评估报告，做好全年机房用电保障、信息系统通知发送服务保障以及互联网地图服务保障。8.中心预算项目和年终财务决算完成后，开展3个项目专项审计和1个预算执行及财务收支审计工作。9.完成省厅安排开展的全省公路、铁路、水路、民航发展研究，全省综合交通运输相关辅助性、事务性、技术服务工作。10.交通运输工程项目监管与路网监测现场踏勘工作。","产出指标","数量指标","舆情信息月报","=","12","期","定量指标","评价按月进行舆情监测的情况。"]
["交通运输工程项目监管和路网监测专项经费","运用财政资金，按照省路政总队（省交通发展中心）工作部署，履行好中心对全省交通运输行业的行政辅助和社会公众的公益服务职责职能，按目标要求完成年度各项重点工作任务，具体实现以下工作目标：\n1.开展交通指挥大厅运行保障工作，保障交通指挥大厅安全运行，各项监测应急业务正常开展。2.开展公路建设竣工档案质量审查及评价工作，对在建或已通车的6个公路建设项目档案编制情况进行质量审查及评价,完成率达100%。3.开展公路网运行监测评价体系建设和业务应用，路网运行监测研究及业务应用工作，完善云南省路网运行监测指标（指数）体系，开展指标（指数）的业务应用，优化路网运行监测周期性、重大节假日报告。4.开展交通气象专业化服务保障工作，提升公路气象灾害防灾抗灾能力，为大众出行服务提供气象预报预警信息支持，为行业主管机构和上级管理机构提供行业管理的数据依据。5.开展日常交通运输数据的监测分析，形成日报、月报；每年度编报交通运输行业《经济运行分析季度报告》。6.中心运行保障经费项目主要是保障省综合交通发展中心办公区及物业的环境卫生、公共秩序、日常运转、安全维护。7.开展数字交通强国试点任务评估，形成一份评估报告，做好全年机房用电保障、信息系统通知发送服务保障以及互联网地图服务保障。8.中心预算项目和年终财务决算完成后，开展3个项目专项审计和1个预算执行及财务收支审计工作。9.完成省厅安排开展的全省公路、铁路、水路、民航发展研究，全省综合交通运输相关辅助性、事务性、技术服务工作。10.交通运输工程项目监管与路网监测现场踏勘工作。","产出指标","质量指标","短信发送成功率",">=","95","%","定量指标","考察短信发送需求是否得到满足。"]
["交通运输工程项目监管和路网监测专项经费","运用财政资金，按照省路政总队（省交通发展中心）工作部署，履行好中心对全省交通运输行业的行政辅助和社会公众的公益服务职责职能，按目标要求完成年度各项重点工作任务，具体实现以下工作目标：\n1.开展交通指挥大厅运行保障工作，保障交通指挥大厅安全运行，各项监测应急业务正常开展。2.开展公路建设竣工档案质量审查及评价工作，对在建或已通车的6个公路建设项目档案编制情况进行质量审查及评价,完成率达100%。3.开展公路网运行监测评价体系建设和业务应用，路网运行监测研究及业务应用工作，完善云南省路网运行监测指标（指数）体系，开展指标（指数）的业务应用，优化路网运行监测周期性、重大节假日报告。4.开展交通气象专业化服务保障工作，提升公路气象灾害防灾抗灾能力，为大众出行服务提供气象预报预警信息支持，为行业主管机构和上级管理机构提供行业管理的数据依据。5.开展日常交通运输数据的监测分析，形成日报、月报；每年度编报交通运输行业《经济运行分析季度报告》。6.中心运行保障经费项目主要是保障省综合交通发展中心办公区及物业的环境卫生、公共秩序、日常运转、安全维护。7.开展数字交通强国试点任务评估，形成一份评估报告，做好全年机房用电保障、信息系统通知发送服务保障以及互联网地图服务保障。8.中心预算项目和年终财务决算完成后，开展3个项目专项审计和1个预算执行及财务收支审计工作。9.完成省厅安排开展的全省公路、铁路、水路、民航发展研究，全省综合交通运输相关辅助性、事务性、技术服务工作。10.交通运输工程项目监管与路网监测现场踏勘工作。","产出指标","质量指标","内部审计项目完成率",">=","90","%","定量指标","反映内部审计项目的完成情况。"]
["交通运输工程项目监管和路网监测专项经费","运用财政资金，按照省路政总队（省交通发展中心）工作部署，履行好中心对全省交通运输行业的行政辅助和社会公众的公益服务职责职能，按目标要求完成年度各项重点工作任务，具体实现以下工作目标：\n1.开展交通指挥大厅运行保障工作，保障交通指挥大厅安全运行，各项监测应急业务正常开展。2.开展公路建设竣工档案质量审查及评价工作，对在建或已通车的6个公路建设项目档案编制情况进行质量审查及评价,完成率达100%。3.开展公路网运行监测评价体系建设和业务应用，路网运行监测研究及业务应用工作，完善云南省路网运行监测指标（指数）体系，开展指标（指数）的业务应用，优化路网运行监测周期性、重大节假日报告。4.开展交通气象专业化服务保障工作，提升公路气象灾害防灾抗灾能力，为大众出行服务提供气象预报预警信息支持，为行业主管机构和上级管理机构提供行业管理的数据依据。5.开展日常交通运输数据的监测分析，形成日报、月报；每年度编报交通运输行业《经济运行分析季度报告》。6.中心运行保障经费项目主要是保障省综合交通发展中心办公区及物业的环境卫生、公共秩序、日常运转、安全维护。7.开展数字交通强国试点任务评估，形成一份评估报告，做好全年机房用电保障、信息系统通知发送服务保障以及互联网地图服务保障。8.中心预算项目和年终财务决算完成后，开展3个项目专项审计和1个预算执行及财务收支审计工作。9.完成省厅安排开展的全省公路、铁路、水路、民航发展研究，全省综合交通运输相关辅助性、事务性、技术服务工作。10.交通运输工程项目监管与路网监测现场踏勘工作。","产出指标","质量指标","路网运行监测信息采集汇总上报率",">=","95","%","定量指标","反映全省路网运行监测信息和数据采集、汇总、上报情况，并进行数据汇总统计，接报、上报数据汇总统计及时率达95%及以上。"]
["交通运输工程项目监管和路网监测专项经费","运用财政资金，按照省路政总队（省交通发展中心）工作部署，履行好中心对全省交通运输行业的行政辅助和社会公众的公益服务职责职能，按目标要求完成年度各项重点工作任务，具体实现以下工作目标：\n1.开展交通指挥大厅运行保障工作，保障交通指挥大厅安全运行，各项监测应急业务正常开展。2.开展公路建设竣工档案质量审查及评价工作，对在建或已通车的6个公路建设项目档案编制情况进行质量审查及评价,完成率达100%。3.开展公路网运行监测评价体系建设和业务应用，路网运行监测研究及业务应用工作，完善云南省路网运行监测指标（指数）体系，开展指标（指数）的业务应用，优化路网运行监测周期性、重大节假日报告。4.开展交通气象专业化服务保障工作，提升公路气象灾害防灾抗灾能力，为大众出行服务提供气象预报预警信息支持，为行业主管机构和上级管理机构提供行业管理的数据依据。5.开展日常交通运输数据的监测分析，形成日报、月报；每年度编报交通运输行业《经济运行分析季度报告》。6.中心运行保障经费项目主要是保障省综合交通发展中心办公区及物业的环境卫生、公共秩序、日常运转、安全维护。7.开展数字交通强国试点任务评估，形成一份评估报告，做好全年机房用电保障、信息系统通知发送服务保障以及互联网地图服务保障。8.中心预算项目和年终财务决算完成后，开展3个项目专项审计和1个预算执行及财务收支审计工作。9.完成省厅安排开展的全省公路、铁路、水路、民航发展研究，全省综合交通运输相关辅助性、事务性、技术服务工作。10.交通运输工程项目监管与路网监测现场踏勘工作。","产出指标","质量指标","监测业务在岗值守率","=","100","%","定量指标","反映监测业务在岗值守情况，依据云南省交通运输厅对综合交通发展中心的职能要求，结合7*24小时值守的工作要求，保障全年7*24小时专人在岗值守，值守率达100%。"]
["交通运输工程项目监管和路网监测专项经费","运用财政资金，按照省路政总队（省交通发展中心）工作部署，履行好中心对全省交通运输行业的行政辅助和社会公众的公益服务职责职能，按目标要求完成年度各项重点工作任务，具体实现以下工作目标：\n1.开展交通指挥大厅运行保障工作，保障交通指挥大厅安全运行，各项监测应急业务正常开展。2.开展公路建设竣工档案质量审查及评价工作，对在建或已通车的6个公路建设项目档案编制情况进行质量审查及评价,完成率达100%。3.开展公路网运行监测评价体系建设和业务应用，路网运行监测研究及业务应用工作，完善云南省路网运行监测指标（指数）体系，开展指标（指数）的业务应用，优化路网运行监测周期性、重大节假日报告。4.开展交通气象专业化服务保障工作，提升公路气象灾害防灾抗灾能力，为大众出行服务提供气象预报预警信息支持，为行业主管机构和上级管理机构提供行业管理的数据依据。5.开展日常交通运输数据的监测分析，形成日报、月报；每年度编报交通运输行业《经济运行分析季度报告》。6.中心运行保障经费项目主要是保障省综合交通发展中心办公区及物业的环境卫生、公共秩序、日常运转、安全维护。7.开展数字交通强国试点任务评估，形成一份评估报告，做好全年机房用电保障、信息系统通知发送服务保障以及互联网地图服务保障。8.中心预算项目和年终财务决算完成后，开展3个项目专项审计和1个预算执行及财务收支审计工作。9.完成省厅安排开展的全省公路、铁路、水路、民航发展研究，全省综合交通运输相关辅助性、事务性、技术服务工作。10.交通运输工程项目监管与路网监测现场踏勘工作。","产出指标","质量指标","交通运输监测分析报告完整性","=","100","%","定量指标","在交通运输监测分析月报、季度经济运行分析报告中，除提供交通运输各行业基础数据外，还需要对数据变化情况、波动幅度、影响要素等进行数据解读和阐释，挖掘数据价值。"]
["交通运输工程项目监管和路网监测专项经费","运用财政资金，按照省路政总队（省交通发展中心）工作部署，履行好中心对全省交通运输行业的行政辅助和社会公众的公益服务职责职能，按目标要求完成年度各项重点工作任务，具体实现以下工作目标：\n1.开展交通指挥大厅运行保障工作，保障交通指挥大厅安全运行，各项监测应急业务正常开展。2.开展公路建设竣工档案质量审查及评价工作，对在建或已通车的6个公路建设项目档案编制情况进行质量审查及评价,完成率达100%。3.开展公路网运行监测评价体系建设和业务应用，路网运行监测研究及业务应用工作，完善云南省路网运行监测指标（指数）体系，开展指标（指数）的业务应用，优化路网运行监测周期性、重大节假日报告。4.开展交通气象专业化服务保障工作，提升公路气象灾害防灾抗灾能力，为大众出行服务提供气象预报预警信息支持，为行业主管机构和上级管理机构提供行业管理的数据依据。5.开展日常交通运输数据的监测分析，形成日报、月报；每年度编报交通运输行业《经济运行分析季度报告》。6.中心运行保障经费项目主要是保障省综合交通发展中心办公区及物业的环境卫生、公共秩序、日常运转、安全维护。7.开展数字交通强国试点任务评估，形成一份评估报告，做好全年机房用电保障、信息系统通知发送服务保障以及互联网地图服务保障。8.中心预算项目和年终财务决算完成后，开展3个项目专项审计和1个预算执行及财务收支审计工作。9.完成省厅安排开展的全省公路、铁路、水路、民航发展研究，全省综合交通运输相关辅助性、事务性、技术服务工作。10.交通运输工程项目监管与路网监测现场踏勘工作。","产出指标","时效指标","路网运行监测报告提交及时率",">=","95","%","定量指标","反映路网运行监测报告提交的及时性。"]
["交通运输工程项目监管和路网监测专项经费","运用财政资金，按照省路政总队（省交通发展中心）工作部署，履行好中心对全省交通运输行业的行政辅助和社会公众的公益服务职责职能，按目标要求完成年度各项重点工作任务，具体实现以下工作目标：\n1.开展交通指挥大厅运行保障工作，保障交通指挥大厅安全运行，各项监测应急业务正常开展。2.开展公路建设竣工档案质量审查及评价工作，对在建或已通车的6个公路建设项目档案编制情况进行质量审查及评价,完成率达100%。3.开展公路网运行监测评价体系建设和业务应用，路网运行监测研究及业务应用工作，完善云南省路网运行监测指标（指数）体系，开展指标（指数）的业务应用，优化路网运行监测周期性、重大节假日报告。4.开展交通气象专业化服务保障工作，提升公路气象灾害防灾抗灾能力，为大众出行服务提供气象预报预警信息支持，为行业主管机构和上级管理机构提供行业管理的数据依据。5.开展日常交通运输数据的监测分析，形成日报、月报；每年度编报交通运输行业《经济运行分析季度报告》。6.中心运行保障经费项目主要是保障省综合交通发展中心办公区及物业的环境卫生、公共秩序、日常运转、安全维护。7.开展数字交通强国试点任务评估，形成一份评估报告，做好全年机房用电保障、信息系统通知发送服务保障以及互联网地图服务保障。8.中心预算项目和年终财务决算完成后，开展3个项目专项审计和1个预算执行及财务收支审计工作。9.完成省厅安排开展的全省公路、铁路、水路、民航发展研究，全省综合交通运输相关辅助性、事务性、技术服务工作。10.交通运输工程项目监管与路网监测现场踏勘工作。","效益指标","可持续影响","交通指挥大厅业务正常运转时长","=","12","月","定量指标","反映交通指挥大厅路网监测相关业务正常运转情况。"]
["交通运输工程项目监管和路网监测专项经费","运用财政资金，按照省路政总队（省交通发展中心）工作部署，履行好中心对全省交通运输行业的行政辅助和社会公众的公益服务职责职能，按目标要求完成年度各项重点工作任务，具体实现以下工作目标：\n1.开展交通指挥大厅运行保障工作，保障交通指挥大厅安全运行，各项监测应急业务正常开展。2.开展公路建设竣工档案质量审查及评价工作，对在建或已通车的6个公路建设项目档案编制情况进行质量审查及评价,完成率达100%。3.开展公路网运行监测评价体系建设和业务应用，路网运行监测研究及业务应用工作，完善云南省路网运行监测指标（指数）体系，开展指标（指数）的业务应用，优化路网运行监测周期性、重大节假日报告。4.开展交通气象专业化服务保障工作，提升公路气象灾害防灾抗灾能力，为大众出行服务提供气象预报预警信息支持，为行业主管机构和上级管理机构提供行业管理的数据依据。5.开展日常交通运输数据的监测分析，形成日报、月报；每年度编报交通运输行业《经济运行分析季度报告》。6.中心运行保障经费项目主要是保障省综合交通发展中心办公区及物业的环境卫生、公共秩序、日常运转、安全维护。7.开展数字交通强国试点任务评估，形成一份评估报告，做好全年机房用电保障、信息系统通知发送服务保障以及互联网地图服务保障。8.中心预算项目和年终财务决算完成后，开展3个项目专项审计和1个预算执行及财务收支审计工作。9.完成省厅安排开展的全省公路、铁路、水路、民航发展研究，全省综合交通运输相关辅助性、事务性、技术服务工作。10.交通运输工程项目监管与路网监测现场踏勘工作。","效益指标","可持续影响","内部审计发现问题整改率",">=","90","%","定量指标","反映内部审计发现问题后涉及部门的整改情况。"]
["交通运输工程项目监管和路网监测专项经费","运用财政资金，按照省路政总队（省交通发展中心）工作部署，履行好中心对全省交通运输行业的行政辅助和社会公众的公益服务职责职能，按目标要求完成年度各项重点工作任务，具体实现以下工作目标：\n1.开展交通指挥大厅运行保障工作，保障交通指挥大厅安全运行，各项监测应急业务正常开展。2.开展公路建设竣工档案质量审查及评价工作，对在建或已通车的6个公路建设项目档案编制情况进行质量审查及评价,完成率达100%。3.开展公路网运行监测评价体系建设和业务应用，路网运行监测研究及业务应用工作，完善云南省路网运行监测指标（指数）体系，开展指标（指数）的业务应用，优化路网运行监测周期性、重大节假日报告。4.开展交通气象专业化服务保障工作，提升公路气象灾害防灾抗灾能力，为大众出行服务提供气象预报预警信息支持，为行业主管机构和上级管理机构提供行业管理的数据依据。5.开展日常交通运输数据的监测分析，形成日报、月报；每年度编报交通运输行业《经济运行分析季度报告》。6.中心运行保障经费项目主要是保障省综合交通发展中心办公区及物业的环境卫生、公共秩序、日常运转、安全维护。7.开展数字交通强国试点任务评估，形成一份评估报告，做好全年机房用电保障、信息系统通知发送服务保障以及互联网地图服务保障。8.中心预算项目和年终财务决算完成后，开展3个项目专项审计和1个预算执行及财务收支审计工作。9.完成省厅安排开展的全省公路、铁路、水路、民航发展研究，全省综合交通运输相关辅助性、事务性、技术服务工作。10.交通运输工程项目监管与路网监测现场踏勘工作。","满意度指标","服务对象满意度","对指挥中心运转满意度",">=","95","%","定量指标","反映参与厅指挥中心各项工作的业务人员对指挥中心运转满意度情况。"]
["交通运输工程项目监管和路网监测专项经费","运用财政资金，按照省路政总队（省交通发展中心）工作部署，履行好中心对全省交通运输行业的行政辅助和社会公众的公益服务职责职能，按目标要求完成年度各项重点工作任务，具体实现以下工作目标：\n1.开展交通指挥大厅运行保障工作，保障交通指挥大厅安全运行，各项监测应急业务正常开展。2.开展公路建设竣工档案质量审查及评价工作，对在建或已通车的6个公路建设项目档案编制情况进行质量审查及评价,完成率达100%。3.开展公路网运行监测评价体系建设和业务应用，路网运行监测研究及业务应用工作，完善云南省路网运行监测指标（指数）体系，开展指标（指数）的业务应用，优化路网运行监测周期性、重大节假日报告。4.开展交通气象专业化服务保障工作，提升公路气象灾害防灾抗灾能力，为大众出行服务提供气象预报预警信息支持，为行业主管机构和上级管理机构提供行业管理的数据依据。5.开展日常交通运输数据的监测分析，形成日报、月报；每年度编报交通运输行业《经济运行分析季度报告》。6.中心运行保障经费项目主要是保障省综合交通发展中心办公区及物业的环境卫生、公共秩序、日常运转、安全维护。7.开展数字交通强国试点任务评估，形成一份评估报告，做好全年机房用电保障、信息系统通知发送服务保障以及互联网地图服务保障。8.中心预算项目和年终财务决算完成后，开展3个项目专项审计和1个预算执行及财务收支审计工作。9.完成省厅安排开展的全省公路、铁路、水路、民航发展研究，全省综合交通运输相关辅助性、事务性、技术服务工作。10.交通运输工程项目监管与路网监测现场踏勘工作。","满意度指标","服务对象满意度","地图服务使用处室满意度",">=","90","%","定量指标","反映地图服务能够发挥实效，用户满意。"]
["交通运输工程项目监管和路网监测专项经费","运用财政资金，按照省路政总队（省交通发展中心）工作部署，履行好中心对全省交通运输行业的行政辅助和社会公众的公益服务职责职能，按目标要求完成年度各项重点工作任务，具体实现以下工作目标：\n1.开展交通指挥大厅运行保障工作，保障交通指挥大厅安全运行，各项监测应急业务正常开展。2.开展公路建设竣工档案质量审查及评价工作，对在建或已通车的6个公路建设项目档案编制情况进行质量审查及评价,完成率达100%。3.开展公路网运行监测评价体系建设和业务应用，路网运行监测研究及业务应用工作，完善云南省路网运行监测指标（指数）体系，开展指标（指数）的业务应用，优化路网运行监测周期性、重大节假日报告。4.开展交通气象专业化服务保障工作，提升公路气象灾害防灾抗灾能力，为大众出行服务提供气象预报预警信息支持，为行业主管机构和上级管理机构提供行业管理的数据依据。5.开展日常交通运输数据的监测分析，形成日报、月报；每年度编报交通运输行业《经济运行分析季度报告》。6.中心运行保障经费项目主要是保障省综合交通发展中心办公区及物业的环境卫生、公共秩序、日常运转、安全维护。7.开展数字交通强国试点任务评估，形成一份评估报告，做好全年机房用电保障、信息系统通知发送服务保障以及互联网地图服务保障。8.中心预算项目和年终财务决算完成后，开展3个项目专项审计和1个预算执行及财务收支审计工作。9.完成省厅安排开展的全省公路、铁路、水路、民航发展研究，全省综合交通运输相关辅助性、事务性、技术服务工作。10.交通运输工程项目监管与路网监测现场踏勘工作。","满意度指标","服务对象满意度","交通强国被评估单位满意度",">=","85","%","定量指标","反映交通强国试点单位对交通强国试点评估工作开展的情况的满意程度。"]
["交通工程领域“银龄工程师”引进留用省本级资金","做好人员和经费保障，按规定落实已招募引领工程师各项待遇，支持部门正常履职。","产出指标","数量指标","劳务费用完成量",">=","90","%","定量指标","实际发放人数/应发放人数×指标分值。"]
["交通工程领域“银龄工程师”引进留用省本级资金","做好人员和经费保障，按规定落实已招募引领工程师各项待遇，支持部门正常履职。","效益指标","社会效益","部门运转","=","正常运转",null,"定性指标","反映部门（单位）运转情况。"]
["交通工程领域“银龄工程师”引进留用省本级资金","做好人员和经费保障，按规定落实已招募引领工程师各项待遇，支持部门正常履职。","满意度指标","服务对象满意度","聘用银龄工程师满意度",">=","90","%","定量指标","反映招募银龄工程师的满意程度。"]
["交通工程领域“银龄工程师”引进留用省本级资金","做好人员和经费保障，按规定落实已招募引领工程师各项待遇，支持部门正常履职。","满意度指标","服务对象满意度","社会公众满意度",">=","90","%","定量指标","反映社会公众对部门（单位）履职情况的满意程度。"]
["其他人员支出","保证办公区域正常运转，提供安全良好的办公环境，确保干部职工人身安全，全面保障好单位的日常工作及运行。","产出指标","数量指标","在岗天数",">=","240","天","定量指标","反映聘用编外人员在岗天数。"]
["其他人员支出","保证办公区域正常运转，提供安全良好的办公环境，确保干部职工人身安全，全面保障好单位的日常工作及运行。","效益指标","可持续影响","办公区域安全运行时长",">=","12","月","定量指标","反映办公区域安全运行状况。"]
["其他人员支出","保证办公区域正常运转，提供安全良好的办公环境，确保干部职工人身安全，全面保障好单位的日常工作及运行。","满意度指标","服务对象满意度","对编外人员工作完成情况满意度",">=","95","%","定量指标","反映中心相关部门对编外人员工作完成情况的满意度。"]
["信创项目专项资金","根据省信创工作要求，完成采购40台计算机，其中台式计算机30台，便携式10台。","产出指标","数量指标","计算机采购数量","=","40","台","定量指标","采购计算机数量。"]
["信创项目专项资金","根据省信创工作要求，完成采购40台计算机，其中台式计算机30台，便携式10台。","效益指标","社会效益","网络安全信息覆盖率",">=","90","%","定量指标","采购的计算机设备投入使用，提升网络安全信息覆盖率达到90%以上。"]
["信创项目专项资金","根据省信创工作要求，完成采购40台计算机，其中台式计算机30台，便携式10台。","满意度指标","服务对象满意度","受益人群满意度",">=","90","%","定量指标","反映使用人群的满意程度。"]
["交通运输职业资格考试专项经费","1、按时按质举办2026年云南省公路水运工程试验检测专业技术人员职业资格考试，稳定增长我省公路水运工程试验检测专业技术持证人员，为全行业提供相关专业技术人才提供基础保障。预计2026年实现职业资格考试报名人数不少于3000人；举行职业资格考试不少于1场；年度职业资格考试服务投诉次数不超过10次。\n2、组织完成2026年云南省二级造价工程师交通行业部分考试试题编制及抽题组卷工作，编制试卷不少于1套。\n3、组织完成2026年云南省交通运输工程安管人员考试题库编制、考试、考核、继续教育工作。预计2026年安管人员考试、考核、继续教育人数不少于8000人；年度安管人员考试、考核、继续教育服务投诉次数不超过10次。","产出指标","数量指标","年度职业资格考试报名人数",">=","3000","人","定量指标","职业资格考试报名情况。"]
["交通运输职业资格考试专项经费","1、按时按质举办2026年云南省公路水运工程试验检测专业技术人员职业资格考试，稳定增长我省公路水运工程试验检测专业技术持证人员，为全行业提供相关专业技术人才提供基础保障。预计2026年实现职业资格考试报名人数不少于3000人；举行职业资格考试不少于1场；年度职业资格考试服务投诉次数不超过10次。\n2、组织完成2026年云南省二级造价工程师交通行业部分考试试题编制及抽题组卷工作，编制试卷不少于1套。\n3、组织完成2026年云南省交通运输工程安管人员考试题库编制、考试、考核、继续教育工作。预计2026年安管人员考试、考核、继续教育人数不少于8000人；年度安管人员考试、考核、继续教育服务投诉次数不超过10次。","产出指标","数量指标","安管人员考试考核继续教育人数",">=","8000","人","定量指标","安管人员考核继续教育情况。"]
["交通运输职业资格考试专项经费","1、按时按质举办2026年云南省公路水运工程试验检测专业技术人员职业资格考试，稳定增长我省公路水运工程试验检测专业技术持证人员，为全行业提供相关专业技术人才提供基础保障。预计2026年实现职业资格考试报名人数不少于3000人；举行职业资格考试不少于1场；年度职业资格考试服务投诉次数不超过10次。\n2、组织完成2026年云南省二级造价工程师交通行业部分考试试题编制及抽题组卷工作，编制试卷不少于1套。\n3、组织完成2026年云南省交通运输工程安管人员考试题库编制、考试、考核、继续教育工作。预计2026年安管人员考试、考核、继续教育人数不少于8000人；年度安管人员考试、考核、继续教育服务投诉次数不超过10次。","产出指标","质量指标","二级造价师试题及组卷符合要求数",">=","1.00","套","定量指标","专家出题、组卷数量。"]
["交通运输职业资格考试专项经费","1、按时按质举办2026年云南省公路水运工程试验检测专业技术人员职业资格考试，稳定增长我省公路水运工程试验检测专业技术持证人员，为全行业提供相关专业技术人才提供基础保障。预计2026年实现职业资格考试报名人数不少于3000人；举行职业资格考试不少于1场；年度职业资格考试服务投诉次数不超过10次。\n2、组织完成2026年云南省二级造价工程师交通行业部分考试试题编制及抽题组卷工作，编制试卷不少于1套。\n3、组织完成2026年云南省交通运输工程安管人员考试题库编制、考试、考核、继续教育工作。预计2026年安管人员考试、考核、继续教育人数不少于8000人；年度安管人员考试、考核、继续教育服务投诉次数不超过10次。","效益指标","可持续影响","职业资格证书有效时间",">=","1.00","年","定量指标","职业资格证书有效时间。"]
["交通运输职业资格考试专项经费","1、按时按质举办2026年云南省公路水运工程试验检测专业技术人员职业资格考试，稳定增长我省公路水运工程试验检测专业技术持证人员，为全行业提供相关专业技术人才提供基础保障。预计2026年实现职业资格考试报名人数不少于3000人；举行职业资格考试不少于1场；年度职业资格考试服务投诉次数不超过10次。\n2、组织完成2026年云南省二级造价工程师交通行业部分考试试题编制及抽题组卷工作，编制试卷不少于1套。\n3、组织完成2026年云南省交通运输工程安管人员考试题库编制、考试、考核、继续教育工作。预计2026年安管人员考试、考核、继续教育人数不少于8000人；年度安管人员考试、考核、继续教育服务投诉次数不超过10次。","效益指标","可持续影响","安管人员合格证书有效时间",">=","1.00","年","定量指标","安管人员合格证书有效时间。"]
["交通运输职业资格考试专项经费","1、按时按质举办2026年云南省公路水运工程试验检测专业技术人员职业资格考试，稳定增长我省公路水运工程试验检测专业技术持证人员，为全行业提供相关专业技术人才提供基础保障。预计2026年实现职业资格考试报名人数不少于3000人；举行职业资格考试不少于1场；年度职业资格考试服务投诉次数不超过10次。\n2、组织完成2026年云南省二级造价工程师交通行业部分考试试题编制及抽题组卷工作，编制试卷不少于1套。\n3、组织完成2026年云南省交通运输工程安管人员考试题库编制、考试、考核、继续教育工作。预计2026年安管人员考试、考核、继续教育人数不少于8000人；年度安管人员考试、考核、继续教育服务投诉次数不超过10次。","满意度指标","服务对象满意度","安管人员考试考核继续教育满意度",">=","90","%","定量指标","反映服务对象对考试、考核、继续教育工作的满意度。"]
["交通运输职业资格考试专项经费","1、按时按质举办2026年云南省公路水运工程试验检测专业技术人员职业资格考试，稳定增长我省公路水运工程试验检测专业技术持证人员，为全行业提供相关专业技术人才提供基础保障。预计2026年实现职业资格考试报名人数不少于3000人；举行职业资格考试不少于1场；年度职业资格考试服务投诉次数不超过10次。\n2、组织完成2026年云南省二级造价工程师交通行业部分考试试题编制及抽题组卷工作，编制试卷不少于1套。\n3、组织完成2026年云南省交通运输工程安管人员考试题库编制、考试、考核、继续教育工作。预计2026年安管人员考试、考核、继续教育人数不少于8000人；年度安管人员考试、考核、继续教育服务投诉次数不超过10次。","满意度指标","服务对象满意度","职业资格考试服务满意度",">=","90","%","定量指标","反映服务对象对考试组织工作的满意度。\n"]

{"sheet":"部门政府性基金预算表06","index":9,"n_rows":10,"n_cols":6,"rows_kept":10,"merged":[[1,0,1,5],[3,0,4,0],[3,1,4,1],[3,2,4,2],[3,3,3,5],[7,0,7,2]]}
[{"$nulls":5},"预算06表"]
["2026年政府性基金预算支出预算表"]
[{"$f":"\"单位名称：\"&\"云南省公路路政管理总队\"","v":"单位名称：云南省公路路政管理总队"},{"$nulls":4},"单位:元"]
["单位名称","科目编码","科目名称","政府性基金预算支出"]
[{"$nulls":3},"合计","基本支出","项目支出"]
[1,2,3,4,5,6]
[]
["合  计",null,"合  计"]
[]
["说明：云南省公路路政管理总队2026年没有政府性基金预算安排的支出，故该表为空表。"]

{"sheet":"部门政府采购预算表07","index":10,"n_rows":69,"n_cols":17,"rows_kept":69,"merged":[[1,0,1,16],[2,0,2,5],[3,0,5,0],[3,1,5,1],[3,2,5,2],[3,3,5,3],[3,4,5,4],[3,5,5,5],[3,6,3,16],[4,6,5,6],[4,7,5,7],[4,8,5,8],[4,9,5,9],[4,10,5,10],[4,11,4,16],[68,0,68,4]]}
[{"$nulls":16},"预算07表"]
["2026年部门政府采购预算表"]
[{"$f":"\"单位名称：\"&\"云南省公路路政管理总队\"","v":"单位名称：云南省公路路政管理总队"},{"$nulls":15},"单位：元"]
["预算项目","采购项目","采购品目","计量\n单位","数量","面向中小企业预留资金","资金来源"]
[{"$nulls":6},"合计","一般公共预算","政府性\n基金","国有资本经营收益","财政专户管理的收入","单位自筹"]
[{"$nulls":7},"小计",{"$nulls":3},"小计","事业收入","事业单位\n经营收入","上级补助收入","附属单位上缴收入","其他收入"]
[1,2,3,4,5,6,7,8,9,10,11,12,13,14,15,16,17]
["云南省公路路政管理总队",{"$nulls":4},{"v":4797900,"d":"4,797,900.00"},{"v":30308700,"d":"30,308,700.00"},{"v":30308700,"d":"30,308,700.00"}]
["云南省公路路政管理总队",{"$nulls":4},{"v":4797900,"d":"4,797,900.00"},{"v":30308700,"d":"30,308,700.00"},{"v":30308700,"d":"30,308,700.00"}]
["公车购置及运维费","汽车燃油费","C23120302 车辆加油、添加燃料服务","项",1,null,{"v":80000,"d":"80,000.00"},{"v":80000,"d":"80,000.00"}]
["公车购置及运维费","汽车维修保养费","C23120301 车辆维修和保养服务","项",1,null,{"v":156600,"d":"156,600.00"},{"v":156600,"d":"156,600.00"}]
["公车购置及运维费","汽车保险费","C1804010201 机动车保险服务","项",1,null,{"v":60000,"d":"60,000.00"},{"v":60000,"d":"60,000.00"}]
["一般公用经费","复印纸","A05040101 复印纸","项",1,{"v":10000,"d":"10,000.00"},{"v":10000,"d":"10,000.00"},{"v":10000,"d":"10,000.00"}]
["交通运输职业资格考试专项经费","2026年交通运输职业资格考试","C02080000 考试服务","项",1,null,{"v":1518300,"d":"1,518,300.00"},{"v":1518300,"d":"1,518,300.00"}]
["交通运输工程项目监管和路网监测专项经费","云南交通强国建设交通发展中心试点任务评估服务2026年项目","C16060000 测试评估认证服务","项",1,null,{"v":241600,"d":"241,600.00"},{"v":241600,"d":"241,600.00"}]
["交通运输工程项目监管和路网监测专项经费","云南省路网运行监测评价体系建设和业务应用项目","C19010000 技术测试和分析服务","项",1,null,{"v":640000,"d":"640,000.00"},{"v":640000,"d":"640,000.00"}]
["交通运输工程项目监管和路网监测专项经费","云南省公路建设竣工档案质量审查及评价项目","C20031000 评价咨询服务","项",1,null,{"v":300000,"d":"300,000.00"},{"v":300000,"d":"300,000.00"}]
["交通运输工程项目监管和路网监测专项经费","云南省公路路政管理总队地图服务","C16039900 其他数据处理服务","项",1,null,{"v":520000,"d":"520,000.00"},{"v":520000,"d":"520,000.00"}]
["交通运输工程项目监管和路网监测专项经费","云南省交通指挥大厅运行保障项目","C16089900 其他运营服务","项",1,{"v":3507600,"d":"3,507,600.00"},{"v":3507600,"d":"3,507,600.00"},{"v":3507600,"d":"3,507,600.00"}]
["交通运输工程项目监管和路网监测专项经费","云南省交通运输厅通知发送服务2026年项目","C17010300 其他增值电信服务","项",1,null,{"v":132100,"d":"132,100.00"},{"v":132100,"d":"132,100.00"}]
["交通运输工程项目监管和路网监测专项经费","采集整理发布重要交通运输信息","C19990000 其他专业技术服务","项",1,null,{"v":510000,"d":"510,000.00"},{"v":510000,"d":"510,000.00"}]
["交通运输工程项目监管和路网监测专项经费","交通运输数据监测分析","C19990000 其他专业技术服务","项",1,null,{"v":350000,"d":"350,000.00"},{"v":350000,"d":"350,000.00"}]
["交通运输工程项目监管和路网监测专项经费","数据监测分析业务合法性审查","C19990000 其他专业技术服务","项",1,null,{"v":80000,"d":"80,000.00"},{"v":80000,"d":"80,000.00"}]
["交通运输工程项目监管和路网监测专项经费","云南省交通气象专业化服务保障项目","C19030000 气象服务","项",1,null,{"v":300000,"d":"300,000.00"},{"v":300000,"d":"300,000.00"}]
["交通运输工程项目监管和路网监测专项经费","内部审计经费","C23030000 审计服务","批",1,{"v":605300,"d":"605,300.00"},{"v":605300,"d":"605,300.00"},{"v":605300,"d":"605,300.00"}]
["交通运输行业标准（定额）制修订与工程造价管理专项经费","交通运输工程造价协助审查","C20030900 评审咨询服务","项",1,null,{"v":900000,"d":"900,000.00"},{"v":900000,"d":"900,000.00"}]
["交通运输行业标准（定额）制修订与工程造价管理专项经费","行业标准（定额）制修订","C23080400 行业标准制修订服务","项",2,null,{"v":850000,"d":"850,000.00"},{"v":850000,"d":"850,000.00"}]
["政务信息化运维服务项目补助资金","云南省交通运输厅密码应用测评服务2026年项目","C16060000 测试评估认证服务","项",1,null,{"v":362900,"d":"362,900.00"},{"v":362900,"d":"362,900.00"}]
["政务信息化运维服务项目补助资金","云南省交通运输厅网络安全等级保护测评服务2026年项目","C16060000 测试评估认证服务","项",1,null,{"v":245800,"d":"245,800.00"},{"v":245800,"d":"245,800.00"}]
["政务信息化运维服务项目补助资金","云南省交通运输厅综合交通发展中心网站运维2026年项目","C16079900 其他运行维护服务","项",1,null,{"v":150000,"d":"150,000.00"},{"v":150000,"d":"150,000.00"}]
["政务信息化运维服务项目补助资金","云南省收费公路联网收费运营在线监管平台维护2026项目","C16079900 其他运行维护服务","项",1,null,{"v":286000,"d":"286,000.00"},{"v":286000,"d":"286,000.00"}]
["政务信息化运维服务项目补助资金","云南省交通运输厅12328热线链路租赁2026年项目","C17010200 网络接入服务","项",1,null,{"v":104000,"d":"104,000.00"},{"v":104000,"d":"104,000.00"}]
["政务信息化运维服务项目补助资金","云南省交通运输厅机关互联网专线租赁2026年项目","C17010200 网络接入服务","项",1,null,{"v":33600,"d":"33,600.00"},{"v":33600,"d":"33,600.00"}]
["政务信息化运维服务项目补助资金","云南省交通运输厅交通行业专网接入专线链路租赁2026年项目","C17010200 网络接入服务","项",1,null,{"v":15200,"d":"15,200.00"},{"v":15200,"d":"15,200.00"}]
["政务信息化运维服务项目补助资金","云南省交通运输厅交通行业专网主干链路租赁2026年项目","C17010200 网络接入服务","项",1,null,{"v":180000,"d":"180,000.00"},{"v":180000,"d":"180,000.00"}]
["政务信息化运维服务项目补助资金","云南省交通运输厅全国高速公路信息通信联网（云南段）光纤租赁2026年项目","C17010200 网络接入服务","项",1,null,{"v":144000,"d":"144,000.00"},{"v":144000,"d":"144,000.00"}]
["政务信息化运维服务项目补助资金","云南省交通运输厅数据中心互联网专线备用链路租赁2026年项目","C17010200 网络接入服务","项",1,null,{"v":32000,"d":"32,000.00"},{"v":32000,"d":"32,000.00"}]
["政务信息化运维服务项目补助资金","云南省交通运输厅数据中心互联网专线链路租赁2026年项目","C17010200 网络接入服务","项",1,null,{"v":38200,"d":"38,200.00"},{"v":38200,"d":"38,200.00"}]
["政务信息化运维服务项目补助资金","云南省交通运输厅交通视频联网平台云空间租用2026年项目","C16040000 云计算服务","项",1,null,{"v":942700,"d":"942,700.00"},{"v":942700,"d":"942,700.00"}]
["政务信息化运维服务项目补助资金","省交通运输厅公路交通观测系统运维2026年项目","C16070000 运行维护服务","项",1,null,{"v":2050000,"d":"2,050,000.00"},{"v":2050000,"d":"2,050,000.00"}]
["政务信息化运维服务项目补助资金","省交通运输厅普通省道和农村公路 “以奖代补”系统运维2026年项目","C16070000 运行维护服务","项",1,null,{"v":598000,"d":"598,000.00"},{"v":598000,"d":"598,000.00"}]
["政务信息化运维服务项目补助资金","省交通运输厅业财管理系统运行维护服务2026年项目","C16070000 运行维护服务","项",1,{"v":675000,"d":"675,000.00"},{"v":675000,"d":"675,000.00"},{"v":675000,"d":"675,000.00"}]
["政务信息化运维服务项目补助资金","云南省公路工程造价管理信息化平台运维2026年项目","C16070000 运行维护服务","项",1,null,{"v":466000,"d":"466,000.00"},{"v":466000,"d":"466,000.00"}]
["政务信息化运维服务项目补助资金","云南省交通运输厅12328热线运行维护服务2026年项目","C16070000 运行维护服务","项",1,null,{"v":526000,"d":"526,000.00"},{"v":526000,"d":"526,000.00"}]
["政务信息化运维服务项目补助资金","云南省交通运输厅道路运输领域系统维护2026年项目","C16070000 运行维护服务","项",1,null,{"v":1101000,"d":"1,101,000.00"},{"v":1101000,"d":"1,101,000.00"}]
["政务信息化运维服务项目补助资金","云南省交通运输厅电子证照辅助系统运维2026年项目","C16070000 运行维护服务","项",1,null,{"v":350000,"d":"350,000.00"},{"v":350000,"d":"350,000.00"}]
["政务信息化运维服务项目补助资金","云南省交通运输厅公路建设项目跟踪问效管理系统运维2026年度项目","C16070000 运行维护服务","项",1,null,{"v":19600,"d":"19,600.00"},{"v":19600,"d":"19,600.00"}]
["政务信息化运维服务项目补助资金","云南省交通运输厅及厅属单位局域网运维2026年项目","C16070000 运行维护服务","项",1,null,{"v":440000,"d":"440,000.00"},{"v":440000,"d":"440,000.00"}]
["政务信息化运维服务项目补助资金","云南省交通运输厅全国高速公路信息通信网（云南段）运维2026年项目","C16070000 运行维护服务","项",1,null,{"v":160000,"d":"160,000.00"},{"v":160000,"d":"160,000.00"}]
["政务信息化运维服务项目补助资金","云南省交通运输厅视频会议系统运维2026年项目","C16070000 运行维护服务","项",1,null,{"v":700000,"d":"700,000.00"},{"v":700000,"d":"700,000.00"}]
["政务信息化运维服务项目补助资金","云南省交通运输厅数字证书系统维护2026年项目","C16070000 运行维护服务","项",1,null,{"v":100000,"d":"100,000.00"},{"v":100000,"d":"100,000.00"}]
["政务信息化运维服务项目补助资金","云南省交通运输厅统计系统运行维护2026年项目","C16070000 运行维护服务","项",1,null,{"v":500000,"d":"500,000.00"},{"v":500000,"d":"500,000.00"}]
["政务信息化运维服务项目补助资金","云南省交通运输厅网络安全运维服务2026年项目","C16070000 运行维护服务","项",1,null,{"v":1414800,"d":"1,414,800.00"},{"v":1414800,"d":"1,414,800.00"}]
["政务信息化运维服务项目补助资金","云南省交通运输厅信用系统运行维护2026年项目","C16070000 运行维护服务","项",1,null,{"v":650000,"d":"650,000.00"},{"v":650000,"d":"650,000.00"}]
["政务信息化运维服务项目补助资金","云南省交通运输厅行业机房运维2026年项目","C16070000 运行维护服务","项",1,null,{"v":1392400,"d":"1,392,400.00"},{"v":1392400,"d":"1,392,400.00"}]
["政务信息化运维服务项目补助资金","云南省交通运输厅行业专网运维2026年项目","C16070000 运行维护服务","项",1,null,{"v":400000,"d":"400,000.00"},{"v":400000,"d":"400,000.00"}]
["政务信息化运维服务项目补助资金","云南省交通运输厅应急通信系统运维2026年项目","C16070000 运行维护服务","项",1,null,{"v":1390000,"d":"1,390,000.00"},{"v":1390000,"d":"1,390,000.00"}]
["政务信息化运维服务项目补助资金","云南省交通运输厅云南公路治超联网综合管理系统运维2026年度项目","C16070000 运行维护服务","项",1,null,{"v":300000,"d":"300,000.00"},{"v":300000,"d":"300,000.00"}]
["政务信息化运维服务项目补助资金","云南省交通运输厅政务办公系统运维2026年项目","C16070000 运行维护服务","项",1,null,{"v":850000,"d":"850,000.00"},{"v":850000,"d":"850,000.00"}]
["政务信息化运维服务项目补助资金","云南省交通运输厅政务服务一网通办系统运维2026年项目","C16070000 运行维护服务","项",1,null,{"v":590000,"d":"590,000.00"},{"v":590000,"d":"590,000.00"}]
["政务信息化运维服务项目补助资金","云南省交通运输厅综合执法系统运行维护2026年项目","C16070000 运行维护服务","项",1,null,{"v":800000,"d":"800,000.00"},{"v":800000,"d":"800,000.00"}]
["政务信息化建设项目补助资金","云南省交通运输厅综合交通信息平台建设2026年度项目等级保护测评服务","C16060000 测试评估认证服务","项",1,null,{"v":25600,"d":"25,600.00"},{"v":25600,"d":"25,600.00"}]
["政务信息化建设项目补助资金","云南省交通运输厅综合交通信息平台建设2026年度项目密码应用安全评估服务","C16060000 测试评估认证服务","项",1,null,{"v":37800,"d":"37,800.00"},{"v":37800,"d":"37,800.00"}]
["政务信息化建设项目补助资金","云南省交通运输厅综合交通信息平台建设2026年度项目监理服务","C16050000 信息化工程监理服务","项",1,null,{"v":22500,"d":"22,500.00"},{"v":22500,"d":"22,500.00"}]
["政务信息化建设项目补助资金","云南省交通运输厅综合交通信息平台建设2026年度项目信息系统设计服务","C16090200 信息系统设计服务","项",1,null,{"v":22600,"d":"22,600.00"},{"v":22600,"d":"22,600.00"}]
["政务信息化建设项目补助资金","云南省交通运输厅综合交通信息平台建设2026年项目","C16010302 行业应用软件开发服务","项",1,null,{"v":1391500,"d":"1,391,500.00"},{"v":1391500,"d":"1,391,500.00"}]
["信创项目专项资金","便携式计算机","A02010108 便携式计算机","台",10,null,{"v":10000,"d":"10,000.00"},{"v":10000,"d":"10,000.00"}]
["信创项目专项资金","台式计算机","A02010105 台式计算机","台",30,null,{"v":30000,"d":"30,000.00"},{"v":30000,"d":"30,000.00"}]
["合  计",{"$nulls":4},{"v":4797900,"d":"4,797,900.00"},{"v":30308700,"d":"30,308,700.00"},{"v":30308700,"d":"30,308,700.00"}]

{"sheet":"部门政府购买服务预算表08","index":11,"n_rows":12,"n_cols":14,"rows_kept":12,"merged":[[1,0,1,13],[2,0,2,2],[3,0,5,0],[3,1,5,1],[3,2,5,2],[3,3,3,13],[4,3,5,3],[4,4,5,4],[4,5,5,5],[4,6,5,6],[4,7,5,7],[4,8,4,13],[9,0,9,2]]}
[{"$nulls":13},"预算08表"]
["2026年部门政府购买服务预算表"]
[{"$f":"\"单位名称：\"&\"云南省公路路政管理总队\"","v":"单位名称：云南省公路路政管理总队"},{"$nulls":12},"单位：元"]
["预算项目","政府购买服务项目","政府购买服务目录","资金来源"]
[{"$nulls":3},"合计","一般公共预算","政府性\n基金","国有资本经营收益","财政专户管理的收入","单位自筹"]
[{"$nulls":8},"小计","事业收入","事业单位\n经营收入","上级补助收入","附属单位上缴收入","其他收入"]
[1,2,3,4,5,6,7,8,9,10,11,12,13,14]
[]
[]
["合  计"]
[]
["说明：云南省公路路政管理总队2026年没有政府购买服务安排的支出，故该表为空表。"]

{"sheet":"省对下转移支付预算表09-1","index":12,"n_rows":10,"n_cols":24,"rows_kept":10,"merged":[[1,0,1,23],[2,0,2,8],[3,0,4,0],[3,1,3,3],[3,4,3,23]]}
[{"$nulls":23},"预算09-1表"]
["2026年省对下转移支付预算表"]
[{"$f":"\"单位名称：\"&\"云南省公路路政管理总队\"","v":"单位名称：云南省公路路政管理总队"},{"$nulls":22},"单位：元"]
["单位名称（项目）","资金来源",null,null,"地区"]
[null,"合计","一般公共预算","政府性基金","昆明","昭通","曲靖","玉溪","红河","文山","普洱","西双版纳","楚雄","大理","保山","德宏","丽江","怒江","迪庆","临沧","宣威","腾冲","镇雄","未分配到地区数"]
[1,2,3,4,5,6,7,8,9,10,11,12,13,14,15,16,17,18,19,20,21,22,23,24]
[]
[]
[]
["说明：云南省公路路政管理总队2026年没有省对下转移支付安排的支出，故该表为空表。"]

{"sheet":"省对下转移支付绩效目标表09-2","index":13,"n_rows":9,"n_cols":10,"rows_kept":9,"merged":[[1,0,1,9],[2,0,2,7]]}
[{"$nulls":9},"预算09-2表"]
["2026年省对下转移支付绩效目标表"]
[{"$f":"\"单位名称：\"&\"云南省公路路政管理总队\"","v":"单位名称：云南省公路路政管理总队"}]
["单位名称、项目名称","项目年度绩效目标","一级指标","二级指标","三级指标","指标性质","指标值","度量单位","指标属性","指标内容"]
[1,2,3,4,5,6,7,8,9,10]
[]
[]
[]
["说明：云南省公路路政管理总队2026年没有省对下转移支付安排的支出，故该表为空表。"]

{"sheet":"新增资产配置表10","index":14,"n_rows":10,"n_cols":8,"rows_kept":10,"merged":[[1,0,1,7],[3,0,4,0],[3,1,4,1],[3,2,4,2],[3,3,4,3],[3,4,4,4],[3,5,3,7],[8,0,8,4],[9,0,9,7]]}
[{"$nulls":7},"预算10表"]
["2026年新增资产配置表"]
[{"$f":"\"单位名称：\"&\"云南省公路路政管理总队\"","v":"单位名称：云南省公路路政管理总队"}]
["单位名称","资产类别","资产分类代码.名称","资产名称","计量单位","财政部门批复数（元）"]
[{"$nulls":5},"数量","单价","金额"]
["1","2","3","4","5","6","7","8"]
["云南省公路路政管理总队",{"$nulls":4},1,null,{"v":1500000,"d":"1,500,000.00"}]
["云南省公路路政管理总队","无形资产","A08060303 应用软件","云南省交通运输厅综合交通信息平台","套",1,{"v":1500000,"d":"1,500,000.00"},{"v":1500000,"d":"1,500,000.00"}]
["合计",{"$nulls":4},1,null,{"v":1500000,"d":"1,500,000.00"}]
["注：涉及土地使用权、房屋、公务用车购置，按照现行相关管理制度规定报批，以职能部门审批意见为准。"]

{"sheet":"中央转移支付补助项目支出预算表11","index":15,"n_rows":12,"n_cols":11,"rows_kept":12,"merged":[[1,0,1,10],[2,0,2,6],[3,0,5,0],[3,1,5,1],[3,2,5,2],[3,3,5,3],[3,4,5,4],[3,5,5,5],[3,6,5,6],[3,7,5,7],[3,8,3,10],[4,8,5,8],[4,9,5,9],[4,10,5,10],[9,0,9,6]]}
[{"$nulls":10},"预算11表"]
["2026年中央转移支付补助项目支出预算表"]
[{"$f":"\"单位名称：\"&\"云南省公路路政管理总队\"","v":"单位名称：云南省公路路政管理总队"},{"$nulls":9},"单位：元"]
["项目分类","项目名称","项目单位","功能科目编码","功能科目名称","经济科目编码","经济科目名称","合计","上级补助"]
[{"$nulls":8},"一般公共预算","政府性基金预算","国有资本经营预算"]
[{"$nulls":8},"小计"]
[1,2,3,4,5,6,7,8,9,10,11]
[]
[]
["合  计"]
[]
["说明：云南省公路路政管理总队2026年没有中央转移支付补助项目安排的支出，故该表为空表。"]

{"sheet":"部门项目支出中期规划预算表12","index":16,"n_rows":17,"n_cols":7,"rows_kept":17,"merged":[[1,0,1,6],[2,0,2,3],[3,0,5,0],[3,1,5,1],[3,2,5,2],[3,3,5,3],[3,4,3,6],[4,4,5,4],[4,5,5,5],[4,6,5,6],[16,0,16,3]]}
[{"$nulls":6},"预算12表"]
["2026年部门项目支出中期规划预算表"]
[{"$f":"\"单位名称：\"&\"云南省公路路政管理总队\"","v":"单位名称：云南省公路路政管理总队"},{"$nulls":5},"单位：元"]
["项目单位","项目分类","项目名称","项目级次","一般公共预算"]
[{"$nulls":4},"2026年","2027年","2028年"]
[{"$nulls":5},"小计"]
[1,2,3,4,5,6,7]
["云南省公路路政管理总队",{"$nulls":3},{"v":32537400,"d":"32,537,400.00"},{"v":32537400,"d":"32,537,400.00"},{"v":32537400,"d":"32,537,400.00"}]
[null,"229 其他运转类","交通运输工程项目监管和路网监测专项经费","本级",{"v":9262100,"d":"9,262,100.00"},{"v":9262100,"d":"9,262,100.00"},{"v":9262100,"d":"9,262,100.00"}]
[null,"229 其他运转类","交通运输行业标准（定额）制修订与工程造价管理专项经费","本级",{"v":1750000,"d":"1,750,000.00"},{"v":1750000,"d":"1,750,000.00"},{"v":1750000,"d":"1,750,000.00"}]
[null,"229 其他运转类","政务信息化运维服务项目补助资金","本级",{"v":18160000,"d":"18,160,000.00"},{"v":18160000,"d":"18,160,000.00"},{"v":18160000,"d":"18,160,000.00"}]
[null,"311 专项业务类","交通运输职业资格考试专项经费","本级",{"v":1518300,"d":"1,518,300.00"},{"v":1518300,"d":"1,518,300.00"},{"v":1518300,"d":"1,518,300.00"}]
[null,"311 专项业务类","政务信息化建设项目补助资金","本级",{"v":1500000,"d":"1,500,000.00"},{"v":1500000,"d":"1,500,000.00"},{"v":1500000,"d":"1,500,000.00"}]
[null,"311 专项业务类","信创项目专项资金","本级",{"v":40000,"d":"40,000.00"},{"v":40000,"d":"40,000.00"},{"v":40000,"d":"40,000.00"}]
[null,"312 民生类","其他人员支出","本级",{"v":217000,"d":"217,000.00"},{"v":217000,"d":"217,000.00"},{"v":217000,"d":"217,000.00"}]
[null,"313 事业发展类","交通工程领域“银龄工程师”引进留用省本级资金","本级",{"v":90000,"d":"90,000.00"},{"v":90000,"d":"90,000.00"},{"v":90000,"d":"90,000.00"}]
["合计","",null,null,{"v":32537400,"d":"32,537,400.00"},{"v":32537400,"d":"32,537,400.00"},{"v":32537400,"d":"32,537,400.00"}]